Workbook

Sheet Stavba
C2: Položkový rozpočet stavby | H2: Datum:
C5: Stavba : | D5: 3410 | E5: Prodloužení vodovodního řadu, Vyskeř - Drahoňovice, Smrčí
C7: Objednatel : | D7: Vodohospodářské sdružení Turnov | H7: IČO : | I7: 49295934
D8: Antonína Dvořáka 287 | H8: DIČ : | I8: CZ49295934
C9: 51101 | D9: Turnov
C11: Zhotovitel : | D11: . | H11: IČO :
H12: DIČ :
C14: Za zhotovitele : | H14: Za objednatele :
C16: _______________ | H16: _______________
J18: Rozpočtové náklady
B19: Základ pro DPH | D19: 12 | E19: % | I19: =ROUND(G33,0) -> 0
B20: DPH | D20: =SazbaDPH1 -> 12 | E20: % | I20: =ROUND(I19*D20/100,0) -> 0
B21: Základ pro DPH | D21: 21 | E21: % | I21: =ROUND(H33,0) -> 80000
B22: DPH | D22: =SazbaDPH2 -> 21 | E22: % | I22: =ROUND(I21*D21/100,0) -> 16800
B23: Cena celkem za stavbu | I23: =SUM(I19:I22) -> 96800
B26: Rekapitulace stavebních objektů a provozních souborů
B28: Číslo a název objektu / provozního souboru | F28: Cena celkem | G28: =CONCATENATE("Základ DPH ",SazbaDPH1," %") -> Základ DPH 12 % | H28: =CONCATENATE("Základ DPH ",SazbaDPH2," %") -> Základ DPH 21 % | I28: DPH celkem | J28: %
B29: 300 | C29: Prodloužení vodovodního řadu | F29: =G29+H29+I29 -> 0 | G29: 0 | H29: =SUM(H38) -> 0 | I29: =(G29*SazbaDPH1)/100+(H29*SazbaDPH2)/100 -> 0 | J29: =IF(CelkemObjekty=0,"",F29/CelkemObjekty*100) -> 0
B30: 310 | C30: Vodovodní přípojky | F30: =G30+H30+I30 -> 0 | G30: 0 | H30: =SUM(H39) -> 0 | I30: 0 | J30: 0
B31: OaVNS | C31: Ostatní a vedlejší náklady stavby | F31: 0 | G31: 0 | H31: =SUM(OaVNS!G28) -> 0 | I31: 0 | J31: 0
B32: PR | C32: Povinná rezerva | F32: 96800 | G32: 0 | H32: 80000 | I32: 16800 | J32: 100
B33: Celkem za stavbu | F33: =SUM(F29:F32) -> 96800 | G33: =SUM(G29:G32) -> 0 | H33: =SUM(H29:H32) -> 80000 | I33: =SUM(I29:I32) -> 16800 | J33: =IF(CelkemObjekty=0,"",F33/CelkemObjekty*100) -> 100
B35: Rekapitulace stavebních rozpočtů
B37: Číslo objektu | C37: Číslo a název rozpočtu | F37: Cena celkem | G37: =CONCATENATE("Základ DPH ",SazbaDPH1," %") -> Základ DPH 12 % | H37: =CONCATENATE("Základ DPH ",SazbaDPH2," %") -> Základ DPH 21 % | I37: DPH celkem | J37: %
B38: 300 | C38: 3410/300 Prodloužení vodovodního řadu | F38: =G38+H38+I38 -> 0 | G38: 0 | H38: =SUM('300 3410300 KL'!C23) -> 0 | I38: =(G38*SazbaDPH1)/100+(H38*SazbaDPH2)/100 -> 0 | J38: =IF(CelkemObjekty=0,"",F38/CelkemObjekty*100) -> 0
B39: 310 | C39: 3410/310 Vodovodní přípojky | F39: =G39+H39+I39 -> 0 | G39: 0 | H39: =SUM('310 3410310 KL'!C23) -> 0 | I39: 0 | J39: 0
B40: Celkem za stavbu | F40: =SUM(F38:F39) -> 0 | G40: =SUM(G38:G39) -> 0 | H40: =SUM(H38:H39) -> 0 | I40: =SUM(I38:I39) -> 0 | J40: =IF(CelkemObjekty=0,"",F40/CelkemObjekty*100) -> 0

Sheet 300 3410300 KL
A1: POLOŽKOVÝ ROZPOČET
A2: Rozpočet | C2: 3410/300 | D2: Prodloužení vodovodního řadu | F2: JKSO | G2: 827.11.A1
A4: Objekt | F4: SKP
A5: 300 | C5: Prodloužení vodovodního řadu | F5: Měrná jednotka | G5: m
A6: Stavba | F6: Počet jednotek | G6: 0
A7: 3410 | C7: Prodloužení vodovodního řadu, Vyskeř - Drahoňovice | F7: Náklady na m.j. | G7: =IF(G6=0,,ROUND((F30+F32)/G6,1)) -> 0
A8: Projektant | C8: PVK Projekt s.r.o. | F8: Typ rozpočtu
A9: Zpracovatel projektu
A10: Objednatel | C10: Vodohospodářské sdružení Turnov
A11: Dodavatel | C11: . | F11: Zakázkové číslo
A12: Rozpočtoval | F12: Počet listů
A13: ROZPOČTOVÉ NÁKLADY
A14: Základní rozpočtové náklady
B15: HSV celkem | C15: ='300 3410300 Rek'!E13 -> 0
A16: Z | B16: PSV celkem | C16: ='300 3410300 Rek'!F13 -> 0
A17: R | B17: M práce celkem | C17: ='300 3410300 Rek'!H13 -> 0
A18: N | B18: M dodávky celkem | C18: ='300 3410300 Rek'!G13 -> 0
A19: ZRN celkem | C19: =SUM(C15:C18) -> 0
A21: HZS | C21: ='300 3410300 Rek'!I13 -> 0
A22: ZRN+HZS | C22: =C19+C21 -> 0
A23: ZRN+ost.náklady+HZS | C23: =C22+G23 -> 0
A24: Vypracoval | D24: Za zhotovitele | F24: Za objednatele
A25: Jméno : | D25: Jméno : | F25: Jméno :
A26: Datum : | D26: Datum : | F26: Datum :
A28: Podpis : | D28: Podpis: | F28: Podpis:
A30: Základ pro DPH | C30: 21 | D30: % | F30: =C23-F32 -> 0
A31: DPH | C31: =C30 -> 21 | D31: % | F31: =ROUND(PRODUCT(F30,C31/100),0) -> 0
A32: Základ pro DPH | C32: 0 | D32: % | F32: 0
A33: DPH | C33: =C32 -> 0 | D33: % | F33: =ROUND(PRODUCT(F32,C33/100),0) -> 0
A34: CENA ZA OBJEKT CELKEM | F34: =ROUND(SUM(F30:F33),0) -> 0
A36: Poznámka :

Sheet 300 3410300 Rek
A1: Stavba : | C1: 3410 Prodloužení vodovodního řadu, Vyskeř - Drahoňovice | G1: Rozpočet : | H1: 3410/300
A2: Objekt : | C2: 300 Prodloužení vodovodního řadu | G2: Prodloužení vodovodního řadu
A4: REKAPITULACE STAVEBNÍCH DÍLŮ
B6: Stavební díl | E6: HSV | F6: PSV | G6: Dodávka | H6: Montáž | I6: HZS
A7: ='300 3410300 Pol'!B7 -> 1 | B7: ='300 3410300 Pol'!C7 -> Zemní práce | E7: ='300 3410300 Pol'!BA112 -> 0 | F7: ='300 3410300 Pol'!BB112 -> 0 | G7: ='300 3410300 Pol'!BC112 -> 0 | H7: ='300 3410300 Pol'!BD112 -> 0 | I7: ='300 3410300 Pol'!BE112 -> 0
A8: ='300 3410300 Pol'!B113 -> 45 | B8: ='300 3410300 Pol'!C113 -> Podkladní a vedlejší konstrukce | E8: ='300 3410300 Pol'!BA116 -> 0 | F8: ='300 3410300 Pol'!BB116 -> 0 | G8: ='300 3410300 Pol'!BC116 -> 0 | H8: ='300 3410300 Pol'!BD116 -> 0 | I8: ='300 3410300 Pol'!BE116 -> 0
A9: ='300 3410300 Pol'!B117 -> 5 | B9: ='300 3410300 Pol'!C117 -> Komunikace | E9: ='300 3410300 Pol'!BA146 -> 0 | F9: ='300 3410300 Pol'!BB146 -> 0 | G9: ='300 3410300 Pol'!BC146 -> 0 | H9: ='300 3410300 Pol'!BD146 -> 0 | I9: ='300 3410300 Pol'!BE146 -> 0
A10: ='300 3410300 Pol'!B147 -> 8 | B10: ='300 3410300 Pol'!C147 -> Trubní vedení | E10: ='300 3410300 Pol'!BA264 -> 0 | F10: ='300 3410300 Pol'!BB264 -> 0 | G10: ='300 3410300 Pol'!BC264 -> 0 | H10: ='300 3410300 Pol'!BD264 -> 0 | I10: ='300 3410300 Pol'!BE264 -> 0
A11: ='300 3410300 Pol'!B265 -> 93 | B11: ='300 3410300 Pol'!C265 -> Dokončovací práce inženýrských staveb | E11: ='300 3410300 Pol'!BA323 -> 0 | F11: ='300 3410300 Pol'!BB323 -> 0 | G11: ='300 3410300 Pol'!BC323 -> 0 | H11: ='300 3410300 Pol'!BD323 -> 0 | I11: ='300 3410300 Pol'!BE323 -> 0
A12: ='300 3410300 Pol'!B324 -> 99 | B12: ='300 3410300 Pol'!C324 -> Staveništní přesun hmot | E12: ='300 3410300 Pol'!BA327 -> 0 | F12: ='300 3410300 Pol'!BB327 -> 0 | G12: ='300 3410300 Pol'!BC327 -> 0 | H12: ='300 3410300 Pol'!BD327 -> 0 | I12: ='300 3410300 Pol'!BE327 -> 0
B13: CELKEM OBJEKT | E13: =SUM(E7:E12) -> 0 | F13: =SUM(F7:F12) -> 0 | G13: =SUM(G7:G12) -> 0 | H13: =SUM(H7:H12) -> 0 | I13: =SUM(I7:I12) -> 0

Sheet 300 3410300 Pol
A1: Položkový rozpočet
A3: Stavba : | C3: 3410 Prodloužení vodovodního řadu, Vyskeř - Drahoňovice | E3: Rozpočet: | F3: ='300 3410300 Rek'!H1 -> 3410/300
A4: Objekt : | C4: 300 Prodloužení vodovodního řadu | E4: ='300 3410300 Rek'!G2 -> Prodloužení vodovodního řadu
A6: P.č. | B6: Číslo položky | C6: Název položky | D6: MJ | E6: množství | F6: cena / MJ | G6: celkem (Kč) | H6: Jednotková hmotnost | I6: Celková hmotnost | J6: Jednotková dem.hmot. | K6: Celková dem.hmot.
A7: Díl: | B7: 1 | C7: Zemní práce | O7: 1
A8: 1 | B8: 113107625R00 | C8: Odstranění podkladu nad 50 m2,kam.drcené tl.25 cm | D8: m2 | E8: 142.56 | G8: =E8*F8 -> 0 | H8: 0 | I8: =E8*H8 -> 0 | J8: -0.55 | K8: =E8*J8 -> -78.408 | O8: 2 | AA8: 1 | AB8: 1 | AC8: 1 | AZ8: 1 | BA8: =IF(AZ8=1,G8,0) -> 0 | BB8: =IF(AZ8=2,G8,0) -> 0 | BC8: =IF(AZ8=3,G8,0) -> 0 | BD8: =IF(AZ8=4,G8,0) -> 0 | BE8: =IF(AZ8=5,G8,0) -> 0 | CA8: 1 | CB8: 1
C9: Vodovodní řad PE D63x5,8 mm: | E9: 0 | M9: Vodovodní řad PE D63x5,8 mm:
C10: Rýha nad výkopy: | E10: 0 | M10: Rýha nad výkopy:
C11: Komunikace KSS LK + MK + rezerva 10%:162,00*0,80*1,1 | E11: 142.56 | M11: Komunikace KSS LK + MK + rezerva 10%:162,00*0,80*1,1
A12: 2 | B12: 113151113R00 | C12: Fréz.živič.krytu pl.do 500 m2,pruh do 75 cm,tl.4cm | D12: m2 | E12: 240 | G12: =E12*F12 -> 0 | H12: 0 | I12: =E12*H12 -> 0 | J12: -0.088 | K12: =E12*J12 -> -21.12 | O12: 2 | AA12: 1 | AB12: 1 | AC12: 1 | AZ12: 1 | BA12: =IF(AZ12=1,G12,0) -> 0 | BB12: =IF(AZ12=2,G12,0) -> 0 | BC12: =IF(AZ12=3,G12,0) -> 0 | BD12: =IF(AZ12=4,G12,0) -> 0 | BE12: =IF(AZ12=5,G12,0) -> 0 | CA12: 1 | CB12: 1
C13: Vodovodní řad PE D63x5,8 mm: | E13: 0 | M13: Vodovodní řad PE D63x5,8 mm:
C14: Komunikace KSS LK:240,00 | E14: 240 | M14: Komunikace KSS LK:240,00
A15: 3 | B15: 113151119R00 | C15: Fréz.živič.krytu pl.do 500 m2,pruh do 75cm,tl.10cm | D15: m2 | E15: 142.56 | G15: =E15*F15 -> 0 | H15: 0 | I15: =E15*H15 -> 0 | J15: -0.22 | K15: =E15*J15 -> -31.3632 | O15: 2 | AA15: 1 | AB15: 1 | AC15: 1 | AZ15: 1 | BA15: =IF(AZ15=1,G15,0) -> 0 | BB15: =IF(AZ15=2,G15,0) -> 0 | BC15: =IF(AZ15=3,G15,0) -> 0 | BD15: =IF(AZ15=4,G15,0) -> 0 | BE15: =IF(AZ15=5,G15,0) -> 0 | CA15: 1 | CB15: 1
C16: Vodovodní řad PE D63x5,8 mm: | E16: 0 | M16: Vodovodní řad PE D63x5,8 mm:
C17: Rýha nad výkopy: | E17: 0 | M17: Rýha nad výkopy:
C18: Komunikace KSS LK + MK + rezerva 10%:162,00*0,80*1,1 | E18: 142.56 | M18: Komunikace KSS LK + MK + rezerva 10%:162,00*0,80*1,1
A19: 4 | B19: 121100002RAA | C19: Sejmutí ornice a uložení na deponii zpětný přesun, rozprostření v tl. 20 cm | D19: m3 | E19: 5 | G19: =E19*F19 -> 0 | H19: 0 | I19: =E19*H19 -> 0 | J19: 0 | K19: =E19*J19 -> 0 | O19: 2 | AA19: 1 | AB19: 1 | AC19: 1 | AZ19: 1 | BA19: =IF(AZ19=1,G19,0) -> 0 | BB19: =IF(AZ19=2,G19,0) -> 0 | BC19: =IF(AZ19=3,G19,0) -> 0 | BD19: =IF(AZ19=4,G19,0) -> 0 | BE19: =IF(AZ19=5,G19,0) -> 0 | CA19: 1 | CB19: 1
C20: Vodovodní řad PE D63x5,8 mm: | E20: 0 | M20: Vodovodní řad PE D63x5,8 mm:
C21: Prostor stávající betonové šachty a plastové VŠ:5,00*5,00*0,20 | E21: 5 | M21: Prostor stávající betonové šachty a plastové VŠ:5,00*5,00*0,20
A22: 5 | B22: 130001101RRX | C22: Příplatek za ztížené hloubení v blízkosti vedení | D22: m3 | E22: 15.2421 | G22: =E22*F22 -> 0 | H22: 0 | I22: =E22*H22 -> 0 | J22: 0 | K22: =E22*J22 -> 0 | O22: 2 | AA22: 1 | AB22: 1 | AC22: 1 | AZ22: 1 | BA22: =IF(AZ22=1,G22,0) -> 0 | BB22: =IF(AZ22=2,G22,0) -> 0 | BC22: =IF(AZ22=3,G22,0) -> 0 | BD22: =IF(AZ22=4,G22,0) -> 0 | BE22: =IF(AZ22=5,G22,0) -> 0 | CA22: 1 | CB22: 1
C23: Včetně případných nutných dokopávem a ručního výkopu podél sousedících inženýrských sítí | L23: Včetně případných nutných dokopávem a ručního výkopu podél sousedících inženýrských sítí | O23: 3
C24: Vodovodní řad PE D63x5,8 mm: | E24: 0 | M24: Vodovodní řad PE D63x5,8 mm:
C25: Začátek provozního součtu | E25: 0 | M25: Začátek provozního součtu
C26: Výkopy : | E26: 0 | M26: Výkopy :
C27: Průměrná hloubka výkopů 1,71 m:161,60*0,80*(1,71-0,40) | E27: 169.3568 | M27: Průměrná hloubka výkopů 1,71 m:161,60*0,80*(1,71-0,40)
C28: Konec provozního součtu | E28: 169.3568 | M28: Konec provozního součtu
C29: V hornině tř.3 - 4 - 9%:169,3568*0,09 | E29: 15.2421 | M29: V hornině tř.3 - 4 - 9%:169,3568*0,09
A30: 6 | B30: 130901123RT3 | C30: Bourání konstrukcí ze železobetonu ve vykopávkách bagrem s kladivem | D30: m3 | E30: 3.1 | G30: =E30*F30 -> 0 | H30: 0 | I30: =E30*H30 -> 0 | J30: -2.5 | K30: =E30*J30 -> -7.75 | O30: 2 | AA30: 1 | AB30: 1 | AC30: 1 | AZ30: 1 | BA30: =IF(AZ30=1,G30,0) -> 0 | BB30: =IF(AZ30=2,G30,0) -> 0 | BC30: =IF(AZ30=3,G30,0) -> 0 | BD30: =IF(AZ30=4,G30,0) -> 0 | BE30: =IF(AZ30=5,G30,0) -> 0 | CA30: 1 | CB30: 1
C31: Položka obsahuje odstranění materiálu obklopujícího betonové a železobetonové konstrukce v míře nutné pro vyzvednutí, rozpojení konstrukcí, uchopení a vyzvednutí konstrukce z výkopu a uložení na dopravní prostředek. | L31: Položka obsahuje odstranění materiálu obklopujícího betonové a železobetonové konstrukce v míře nutné pro vyzvednutí, rozpojení konstrukcí, uchopení a vyzvednutí konstrukce z výkopu a uložení na dopravní prostředek. | O31: 3
C32: Vodovodní řad PE D63x5,8 mm: | E32: 0 | M32: Vodovodní řad PE D63x5,8 mm:
C33: Stávající železobetonová šachta:3,10 | E33: 3.1 | M33: Stávající železobetonová šachta:3,10
A34: 7 | B34: 132201212R00 | C34: Hloubení rýh š.do 200 cm hor.3 do 1000m3,STROJNĚ | D34: m3 | E34: 84.6784 | G34: =E34*F34 -> 0 | H34: 0 | I34: =E34*H34 -> 0 | J34: 0 | K34: =E34*J34 -> 0 | O34: 2 | AA34: 1 | AB34: 1 | AC34: 1 | AZ34: 1 | BA34: =IF(AZ34=1,G34,0) -> 0 | BB34: =IF(AZ34=2,G34,0) -> 0 | BC34: =IF(AZ34=3,G34,0) -> 0 | BD34: =IF(AZ34=4,G34,0) -> 0 | BE34: =IF(AZ34=5,G34,0) -> 0 | CA34: 1 | CB34: 1
C35: Položka obsahuje hloubení rýh traktorbagrem, naložení výkopku na dopravní prostředek pro svislé, nebo vodorovné přemístění, popř. přemístění výkopku do 3 m (po povrchu území), případné zajištění rypadel polštáři, udržování pracoviště a ochranu výkopiště proti stékání srážkové vody z okolního terénu i s jejím odvodněním, nebo odvedením, přesekání a odstranění kořenů ve výkopišti, odstranění napadávek, urovnání dna výkopu. | L35: Položka obsahuje hloubení rýh traktorbagrem, naložení výkopku na dopravní prostředek pro svislé, nebo vodorovné přemístění, popř. přemístění výkopku do 3 m (po povrchu území), případné zajištění rypadel polštáři, udržování pracoviště a ochranu výkopiště proti stékání srážkové vody z okolního terénu i s jejím odvodněním, nebo odvedením, přesekání a odstranění kořenů ve výkopišti, odstranění napadávek, urovnání dna výkopu. | O35: 3
C36: Vodovodní řad PE D63x5,8 mm: | E36: 0 | M36: Vodovodní řad PE D63x5,8 mm:
C37: Začátek provozního součtu | E37: 0 | M37: Začátek provozního součtu
C38: Výkopy : | E38: 0 | M38: Výkopy :
C39: Průměrná hloubka výkopů 1,71 m:161,60*0,80*(1,71-0,40) | E39: 169.3568 | M39: Průměrná hloubka výkopů 1,71 m:161,60*0,80*(1,71-0,40)
C40: Konec provozního součtu | E40: 169.3568 | M40: Konec provozního součtu
C41: V hornině tř.3 - 50%:169,3568*0,5 | E41: 84.6784 | M41: V hornině tř.3 - 50%:169,3568*0,5
A42: 8 | B42: 132201219R00 | C42: Přípl.za lepivost,hloubení rýh 200cm,hor.3,STROJNĚ | D42: m3 | E42: 42.3392 | G42: =E42*F42 -> 0 | H42: 0 | I42: =E42*H42 -> 0 | J42: 0 | K42: =E42*J42 -> 0 | O42: 2 | AA42: 1 | AB42: 1 | AC42: 1 | AZ42: 1 | BA42: =IF(AZ42=1,G42,0) -> 0 | BB42: =IF(AZ42=2,G42,0) -> 0 | BC42: =IF(AZ42=3,G42,0) -> 0 | BD42: =IF(AZ42=4,G42,0) -> 0 | BE42: =IF(AZ42=5,G42,0) -> 0 | CA42: 1 | CB42: 1
C43: Vodovodní řad PE D63x5,8 mm: | E43: 0 | M43: Vodovodní řad PE D63x5,8 mm:
C44: Začátek provozního součtu | E44: 0 | M44: Začátek provozního součtu
C45: Výkopy : | E45: 0 | M45: Výkopy :
C46: Průměrná hloubka výkopů 1,71 m:161,60*0,80*(1,71-0,40) | E46: 169.3568 | M46: Průměrná hloubka výkopů 1,71 m:161,60*0,80*(1,71-0,40)
C47: Konec provozního součtu | E47: 169.3568 | M47: Konec provozního součtu
C48: V hornině tř.3 - 50%:169,3568*0,5*0,5 | E48: 42.3392 | M48: V hornině tř.3 - 50%:169,3568*0,5*0,5
A49: 9 | B49: 132301212R00 | C49: Hloubení rýh š.do 200 cm hor.4 do 1000 m3, STROJNĚ | D49: m3 | E49: 84.6784 | G49: =E49*F49 -> 0 | H49: 0 | I49: =E49*H49 -> 0 | J49: 0 | K49: =E49*J49 -> 0 | O49: 2 | AA49: 1 | AB49: 1 | AC49: 1 | AZ49: 1 | BA49: =IF(AZ49=1,G49,0) -> 0 | BB49: =IF(AZ49=2,G49,0) -> 0 | BC49: =IF(AZ49=3,G49,0) -> 0 | BD49: =IF(AZ49=4,G49,0) -> 0 | BE49: =IF(AZ49=5,G49,0) -> 0 | CA49: 1 | CB49: 1
C50: Položka obsahuje hloubení rýh traktorbagrem, naložení výkopku na dopravní prostředek pro svislé, nebo vodorovné přemístění, popř. přemístění výkopku do 3 m (po povrchu území), případné zajištění rypadel polštáři, udržování pracoviště a ochranu výkopiště proti stékání srážkové vody z okolního terénu i s jejím odvodněním, nebo odvedením, přesekání a odstranění kořenů ve výkopišti, odstranění napadávek, urovnání dna výkopu. | L50: Položka obsahuje hloubení rýh traktorbagrem, naložení výkopku na dopravní prostředek pro svislé, nebo vodorovné přemístění, popř. přemístění výkopku do 3 m (po povrchu území), případné zajištění rypadel polštáři, udržování pracoviště a ochranu výkopiště proti stékání srážkové vody z okolního terénu i s jejím odvodněním, nebo odvedením, přesekání a odstranění kořenů ve výkopišti, odstranění napadávek, urovnání dna výkopu. | O50: 3
C51: Vodovodní řad PE D63x5,8 mm: | E51: 0 | M51: Vodovodní řad PE D63x5,8 mm:
C52: Začátek provozního součtu | E52: 0 | M52: Začátek provozního součtu
C53: Výkopy : | E53: 0 | M53: Výkopy :
C54: Průměrná hloubka výkopů 1,71 m:161,60*0,80*(1,71-0,40) | E54: 169.3568 | M54: Průměrná hloubka výkopů 1,71 m:161,60*0,80*(1,71-0,40)
C55: Konec provozního součtu | E55: 169.3568 | M55: Konec provozního součtu
C56: V hornině tř.4 - 50%:169,3568*0,5 | E56: 84.6784 | M56: V hornině tř.4 - 50%:169,3568*0,5
A57: 10 | B57: 132301219R00 | C57: Přípl.za lepivost,hloubení rýh 200cm,hor.4,STROJNĚ | D57: m3 | E57: 42.3392 | G57: =E57*F57 -> 0 | H57: 0 | I57: =E57*H57 -> 0 | J57: 0 | K57: =E57*J57 -> 0 | O57: 2 | AA57: 1 | AB57: 1 | AC57: 1 | AZ57: 1 | BA57: =IF(AZ57=1,G57,0) -> 0 | BB57: =IF(AZ57=2,G57,0) -> 0 | BC57: =IF(AZ57=3,G57,0) -> 0 | BD57: =IF(AZ57=4,G57,0) -> 0 | BE57: =IF(AZ57=5,G57,0) -> 0 | CA57: 1 | CB57: 1
C58: Vodovodní řad PE D63x5,8 mm: | E58: 0 | M58: Vodovodní řad PE D63x5,8 mm:
C59: Začátek provozního součtu | E59: 0 | M59: Začátek provozního součtu
C60: Výkopy : | E60: 0 | M60: Výkopy :
C61: Průměrná hloubka výkopů 1,71 m:161,60*0,80*(1,71-0,40) | E61: 169.3568 | M61: Průměrná hloubka výkopů 1,71 m:161,60*0,80*(1,71-0,40)
C62: Konec provozního součtu | E62: 169.3568 | M62: Konec provozního součtu
C63: V hornině tř.4 - 50%:169,3568*0,5*0,5 | E63: 42.3392 | M63: V hornině tř.4 - 50%:169,3568*0,5*0,5
A64: 11 | B64: 151101101R00 | C64: Pažení a rozepření stěn rýh - příložné - hl.do 2 m | D64: m2 | E64: 552.672 | G64: =E64*F64 -> 0 | H64: 0.00099 | I64: =E64*H64 -> 0.54714528 | J64: 0 | K64: =E64*J64 -> 0 | O64: 2 | AA64: 1 | AB64: 1 | AC64: 1 | AZ64: 1 | BA64: =IF(AZ64=1,G64,0) -> 0 | BB64: =IF(AZ64=2,G64,0) -> 0 | BC64: =IF(AZ64=3,G64,0) -> 0 | BD64: =IF(AZ64=4,G64,0) -> 0 | BE64: =IF(AZ64=5,G64,0) -> 0 | CA64: 1 | CB64: 1
C65: Vodovodní řad PE D63x5,8 mm: | E65: 0 | M65: Vodovodní řad PE D63x5,8 mm:
C66: Výkopy : | E66: 0 | M66: Výkopy :
C67: Průměrná hloubka výkopů 1,71 m:161,60*1,71*2 | E67: 552.672 | M67: Průměrná hloubka výkopů 1,71 m:161,60*1,71*2
A68: 12 | B68: 151101111R00 | C68: Odstranění pažení stěn rýh - příložné - hl. do 2 m | D68: m2 | E68: 552.672 | G68: =E68*F68 -> 0 | H68: 0 | I68: =E68*H68 -> 0 | J68: 0 | K68: =E68*J68 -> 0 | O68: 2 | AA68: 1 | AB68: 1 | AC68: 1 | AZ68: 1 | BA68: =IF(AZ68=1,G68,0) -> 0 | BB68: =IF(AZ68=2,G68,0) -> 0 | BC68: =IF(AZ68=3,G68,0) -> 0 | BD68: =IF(AZ68=4,G68,0) -> 0 | BE68: =IF(AZ68=5,G68,0) -> 0 | CA68: 1 | CB68: 1
C69: Vodovodní řad PE D63x5,8 mm: | E69: 0 | M69: Vodovodní řad PE D63x5,8 mm:
C70: Výkopy : | E70: 0 | M70: Výkopy :
C71: Průměrná hloubka výkopů 1,71 m:161,60*1,71*2 | E71: 552.672 | M71: Průměrná hloubka výkopů 1,71 m:161,60*1,71*2
A72: 13 | B72: 162701105RSZ | C72: Vodorovné přemístění výkopku z hor.1-7 na skládku zhotovitele | D72: m3 | E72: 163.3068 | G72: =E72*F72 -> 0 | H72: 0 | I72: =E72*H72 -> 0 | J72: 0 | K72: =E72*J72 -> 0 | O72: 2 | AA72: 1 | AB72: 1 | AC72: 1 | AZ72: 1 | BA72: =IF(AZ72=1,G72,0) -> 0 | BB72: =IF(AZ72=2,G72,0) -> 0 | BC72: =IF(AZ72=3,G72,0) -> 0 | BD72: =IF(AZ72=4,G72,0) -> 0 | BE72: =IF(AZ72=5,G72,0) -> 0 | CA72: 1 | CB72: 1
C73: Vodovodní řad PE D63x5,8 mm: | E73: 0 | M73: Vodovodní řad PE D63x5,8 mm:
C74: Výkopy: | E74: 0 | M74: Výkopy:
C75: V hornině tř.3 - 4:169,3568 | E75: 169.3568 | M75: V hornině tř.3 - 4:169,3568
C76: Odpočet zásypů zeminou:-6,0500 | E76: -6.05 | M76: Odpočet zásypů zeminou:-6,0500
A77: 14 | B77: 174101101R00 | C77: Zásyp jam, rýh, šachet se zhutněním | D77: m3 | E77: 109.0862 | G77: =E77*F77 -> 0 | H77: 0 | I77: =E77*H77 -> 0 | J77: 0 | K77: =E77*J77 -> 0 | O77: 2 | AA77: 1 | AB77: 1 | AC77: 1 | AZ77: 1 | BA77: =IF(AZ77=1,G77,0) -> 0 | BB77: =IF(AZ77=2,G77,0) -> 0 | BC77: =IF(AZ77=3,G77,0) -> 0 | BD77: =IF(AZ77=4,G77,0) -> 0 | BE77: =IF(AZ77=5,G77,0) -> 0 | CA77: 1 | CB77: 1
C78: Položka obsahuje strojní přemístění materiálu pro zásyp ze vzdálenosti do 10 m od okraje zásypu. | L78: Položka obsahuje strojní přemístění materiálu pro zásyp ze vzdálenosti do 10 m od okraje zásypu. | O78: 3
O79: 3
C80: Zásypy zeminou:6,0500 | E80: 6.05 | M80: Zásypy zeminou:6,0500
C81: Začátek provozního součtu | E81: 0 | M81: Začátek provozního součtu
C82: Prostor původní betonové šachty a VŠ:6,0500 | E82: 6.05 | M82: Prostor původní betonové šachty a VŠ:6,0500
C83: Zásypa ŠD fr. 0-63 mm: | E83: 0 | M83: Zásypa ŠD fr. 0-63 mm:
C84: Konec provozního součtu | E84: 6.05 | M84: Konec provozního součtu
C85: Vodovodní řad PE D63x5,8 mm:103,0362 | E85: 103.0362 | M85: Vodovodní řad PE D63x5,8 mm:103,0362
C86: Začátek provozního součtu | E86: 0 | M86: Začátek provozního součtu
C87: Výkopy : | E87: 0 | M87: Výkopy :
C88: Průměrná hloubka výkopů 1,71 m:161,60*0,80*(1,71-0,40) | E88: 169.3568 | M88: Průměrná hloubka výkopů 1,71 m:161,60*0,80*(1,71-0,40)
C89: Odpočet objemu lože, potrubí a obsypů:-161,60*0,80*(0,15+0,063+0,30) | E89: -66.3206 | M89: Odpočet objemu lože, potrubí a obsypů:-161,60*0,80*(0,15+0,063+0,30)
C90: Konec provozního součtu | E90: 103.0362 | M90: Konec provozního součtu
A91: 15 | B91: 175101101R00 | C91: Obsyp potrubí bez prohození sypaniny | D91: m3 | E91: 46.4249 | G91: =E91*F91 -> 0 | H91: 0 | I91: =E91*H91 -> 0 | J91: 0 | K91: =E91*J91 -> 0 | O91: 2 | AA91: 1 | AB91: 1 | AC91: 1 | AZ91: 1 | BA91: =IF(AZ91=1,G91,0) -> 0 | BB91: =IF(AZ91=2,G91,0) -> 0 | BC91: =IF(AZ91=3,G91,0) -> 0 | BD91: =IF(AZ91=4,G91,0) -> 0 | BE91: =IF(AZ91=5,G91,0) -> 0 | CA91: 1 | CB91: 1
C92: Vodovodní řad PE D63x5,8 mm:161,60*(0,80*(0,063+0,30)-0,0315^2*Pi) | E92: 46.4249 | M92: Vodovodní řad PE D63x5,8 mm:161,60*(0,80*(0,063+0,30)-0,0315^2*Pi)
A93: 16 | B93: 199000002R00 | C93: Poplatek za skládku horniny 1- 7 č. dle katal. odpadů 17 05 04 | D93: m3 | E93: 163.3068 | G93: =E93*F93 -> 0 | H93: 0 | I93: =E93*H93 -> 0 | J93: 0 | K93: =E93*J93 -> 0 | O93: 2 | AA93: 1 | AB93: 1 | AC93: 1 | AZ93: 1 | BA93: =IF(AZ93=1,G93,0) -> 0 | BB93: =IF(AZ93=2,G93,0) -> 0 | BC93: =IF(AZ93=3,G93,0) -> 0 | BD93: =IF(AZ93=4,G93,0) -> 0 | BE93: =IF(AZ93=5,G93,0) -> 0 | CA93: 1 | CB93: 1
C94: Vodovodní řad PE D63x5,8 mm: | E94: 0 | M94: Vodovodní řad PE D63x5,8 mm:
C95: Výkopy: | E95: 0 | M95: Výkopy:
C96: V hornině tř.3 - 4:169,3568 | E96: 169.3568 | M96: V hornině tř.3 - 4:169,3568
C97: Odpočet zásypů zeminou:-6,0500 | E97: -6.05 | M97: Odpočet zásypů zeminou:-6,0500
A98: 17 | B98: 979082113RSZ | C98: Vodorovná doprava suti po suchu na skládku zhotovitele | D98: t | E98: 138.6412 | G98: =E98*F98 -> 0 | H98: 0 | I98: =E98*H98 -> 0 | J98: 0 | K98: =E98*J98 -> 0 | O98: 2 | AA98: 1 | AB98: 1 | AC98: 1 | AZ98: 1 | BA98: =IF(AZ98=1,G98,0) -> 0 | BB98: =IF(AZ98=2,G98,0) -> 0 | BC98: =IF(AZ98=3,G98,0) -> 0 | BD98: =IF(AZ98=4,G98,0) -> 0 | BE98: =IF(AZ98=5,G98,0) -> 0 | CA98: 1 | CB98: 1
A99: 18 | B99: 979089001R00 | C99: Poplatek za skládku stavební suti štěrky z komunikací, skupina odpadu 010408 | D99: t | E99: 78.408 | G99: =E99*F99 -> 0 | H99: 0 | I99: =E99*H99 -> 0 | J99: 0 | K99: =E99*J99 -> 0 | O99: 2 | AA99: 1 | AB99: 1 | AC99: 1 | AZ99: 1 | BA99: =IF(AZ99=1,G99,0) -> 0 | BB99: =IF(AZ99=2,G99,0) -> 0 | BC99: =IF(AZ99=3,G99,0) -> 0 | BD99: =IF(AZ99=4,G99,0) -> 0 | BE99: =IF(AZ99=5,G99,0) -> 0 | CA99: 1 | CB99: 1
A100: 19 | B100: 979990103R00 | C100: Poplatek za skládku stavební suti beton, skupina odpadu 170101 | D100: t | E100: 7.75 | G100: =E100*F100 -> 0 | H100: 0 | I100: =E100*H100 -> 0 | J100: 0 | K100: =E100*J100 -> 0 | O100: 2 | AA100: 1 | AB100: 0 | AC100: 0 | AZ100: 1 | BA100: =IF(AZ100=1,G100,0) -> 0 | BB100: =IF(AZ100=2,G100,0) -> 0 | BC100: =IF(AZ100=3,G100,0) -> 0 | BD100: =IF(AZ100=4,G100,0) -> 0 | BE100: =IF(AZ100=5,G100,0) -> 0 | CA100: 1 | CB100: 0
A101: 20 | B101: 979999995R00 | C101: Poplatek za reciklaci asfaltu, kusovost do 1600cm2 skupina 170302 | D101: t | E101: 52.4832 | G101: =E101*F101 -> 0 | H101: 0 | I101: =E101*H101 -> 0 | J101: 0 | K101: =E101*J101 -> 0 | O101: 2 | AA101: 1 | AB101: 1 | AC101: 1 | AZ101: 1 | BA101: =IF(AZ101=1,G101,0) -> 0 | BB101: =IF(AZ101=2,G101,0) -> 0 | BC101: =IF(AZ101=3,G101,0) -> 0 | BD101: =IF(AZ101=4,G101,0) -> 0 | BE101: =IF(AZ101=5,G101,0) -> 0 | CA101: 1 | CB101: 1
C102: Položka je určena pro suť o velikosti kusu do 30x30 cm (technologický materiál určený k recyklaci). | L102: Položka je určena pro suť o velikosti kusu do 30x30 cm (technologický materiál určený k recyklaci). | O102: 3
A103: 21 | B103: 58337308.R | C103: Štěrkopísek frakce 0-2 tř.B | D103: t | E103: 92.5123 | G103: =E103*F103 -> 0 | H103: 1 | I103: =E103*H103 -> 92.5123 | K103: =E103*J103 -> 0 | O103: 2 | AA103: 3 | AB103: 1 | AC103: 58337308.R | AZ103: 1 | BA103: =IF(AZ103=1,G103,0) -> 0 | BB103: =IF(AZ103=2,G103,0) -> 0 | BC103: =IF(AZ103=3,G103,0) -> 0 | BD103: =IF(AZ103=4,G103,0) -> 0 | BE103: =IF(AZ103=5,G103,0) -> 0 | CA103: 3 | CB103: 1
C104: Vodovodní řad PE D63x5,8 mm:161,60*(0,80*(0,063+0,30)-0,0315^2*Pi)*1,973*1,01 | E104: 92.5123 | M104: Vodovodní řad PE D63x5,8 mm:161,60*(0,80*(0,063+0,30)-0,0315^2*Pi)*1,973*1,01
A105: 22 | B105: 58344197R | C105: Štěrkodrtě frakce 0-63 A | D105: t | E105: 194.9167 | G105: =E105*F105 -> 0 | H105: 1 | I105: =E105*H105 -> 194.9167 | K105: =E105*J105 -> 0 | O105: 2 | AA105: 3 | AB105: 1 | AC105: 58344197R | AZ105: 1 | BA105: =IF(AZ105=1,G105,0) -> 0 | BB105: =IF(AZ105=2,G105,0) -> 0 | BC105: =IF(AZ105=3,G105,0) -> 0 | BD105: =IF(AZ105=4,G105,0) -> 0 | BE105: =IF(AZ105=5,G105,0) -> 0 | CA105: 3 | CB105: 1
C106: Vodovodní řad PE D63x5,8 mm:103,0362*1,873*1,01 | E106: 194.9167 | M106: Vodovodní řad PE D63x5,8 mm:103,0362*1,873*1,01
C107: Začátek provozního součtu | E107: 0 | M107: Začátek provozního součtu
C108: Výkopy : | E108: 0 | M108: Výkopy :
C109: Průměrná hloubka výkopů 1,71 m:161,60*0,80*(1,71-0,40) | E109: 169.3568 | M109: Průměrná hloubka výkopů 1,71 m:161,60*0,80*(1,71-0,40)
C110: Odpočet objemu lože, potrubí a obsypů:-161,60*0,80*(0,15+0,063+0,30) | E110: -66.3206 | M110: Odpočet objemu lože, potrubí a obsypů:-161,60*0,80*(0,15+0,063+0,30)
C111: Konec provozního součtu | E111: 103.0362 | M111: Konec provozního součtu
B112: Celkem za | C112: 1 Zemní práce | G112: =SUM(G7:G111) -> 0 | I112: =SUM(I7:I111) -> 287.9761453 | K112: =SUM(K7:K111) -> -138.6412 | O112: 4 | BA112: =SUM(BA7:BA111) -> 0 | BB112: =SUM(BB7:BB111) -> 0 | BC112: =SUM(BC7:BC111) -> 0 | BD112: =SUM(BD7:BD111) -> 0 | BE112: =SUM(BE7:BE111) -> 0
A113: Díl: | B113: 45 | C113: Podkladní a vedlejší konstrukce | O113: 1
A114: 23 | B114: 451572111R00 | C114: Lože pod potrubí z kameniva těženého 0 - 4 mm | D114: m3 | E114: 19.392 | G114: =E114*F114 -> 0 | H114: 0.43051 | I114: =E114*H114 -> 8.34844992 | J114: 0 | K114: =E114*J114 -> 0 | O114: 2 | AA114: 1 | AB114: 1 | AC114: 1 | AZ114: 1 | BA114: =IF(AZ114=1,G114,0) -> 0 | BB114: =IF(AZ114=2,G114,0) -> 0 | BC114: =IF(AZ114=3,G114,0) -> 0 | BD114: =IF(AZ114=4,G114,0) -> 0 | BE114: =IF(AZ114=5,G114,0) -> 0 | CA114: 1 | CB114: 1
C115: Vodovodní řad PE D63x5,8 mm:161,60*0,80*0,15 | E115: 19.392 | M115: Vodovodní řad PE D63x5,8 mm:161,60*0,80*0,15
B116: Celkem za | C116: 45 Podkladní a vedlejší konstrukce | G116: =SUM(G113:G115) -> 0 | I116: =SUM(I113:I115) -> 8.34844992 | K116: =SUM(K113:K115) -> 0 | O116: 4 | BA116: =SUM(BA113:BA115) -> 0 | BB116: =SUM(BB113:BB115) -> 0 | BC116: =SUM(BC113:BC115) -> 0 | BD116: =SUM(BD113:BD115) -> 0 | BE116: =SUM(BE113:BE115) -> 0
A117: Díl: | B117: 5 | C117: Komunikace | O117: 1
A118: 24 | B118: 566903111R00 | C118: Vyspravení podkladu po překopech kam.hrubě drceným | D118: t | E118: 66.7537 | G118: =E118*F118 -> 0 | H118: 1.1 | I118: =E118*H118 -> 73.42907 | J118: 0 | K118: =E118*J118 -> 0 | O118: 2 | AA118: 1 | AB118: 1 | AC118: 1 | AZ118: 1 | BA118: =IF(AZ118=1,G118,0) -> 0 | BB118: =IF(AZ118=2,G118,0) -> 0 | BC118: =IF(AZ118=3,G118,0) -> 0 | BD118: =IF(AZ118=4,G118,0) -> 0 | BE118: =IF(AZ118=5,G118,0) -> 0 | CA118: 1 | CB118: 1
C119: Vodovodní řad PE D63x5,8 mm: | E119: 0 | M119: Vodovodní řad PE D63x5,8 mm:
C120: Rýha nad výkopy: | E120: 0 | M120: Rýha nad výkopy:
C121: Komunikace KSS LK + MK + rezerva 10%:162,00*0,80*0,25*1,873*1,1 | E121: 66.7537 | M121: Komunikace KSS LK + MK + rezerva 10%:162,00*0,80*0,25*1,873*1,1
A122: 25 | B122: 566904111R00 | C122: Vyspravení podkladu po překopech kam.obal.asfaltem | D122: t | E122: 35.64 | G122: =E122*F122 -> 0 | H122: 1 | I122: =E122*H122 -> 35.64 | J122: 0 | K122: =E122*J122 -> 0 | O122: 2 | AA122: 1 | AB122: 1 | AC122: 1 | AZ122: 1 | BA122: =IF(AZ122=1,G122,0) -> 0 | BB122: =IF(AZ122=2,G122,0) -> 0 | BC122: =IF(AZ122=3,G122,0) -> 0 | BD122: =IF(AZ122=4,G122,0) -> 0 | BE122: =IF(AZ122=5,G122,0) -> 0 | CA122: 1 | CB122: 1
C123: Vodovodní řad PE D63x5,8 mm: | E123: 0 | M123: Vodovodní řad PE D63x5,8 mm:
C124: Rýha nad výkopy: | E124: 0 | M124: Rýha nad výkopy:
C125: Komunikace KSS LK + MK + rezerva 10%:162,00*0,80*0,10*2,5*1,1 | E125: 35.64 | M125: Komunikace KSS LK + MK + rezerva 10%:162,00*0,80*0,10*2,5*1,1
A126: 26 | B126: 572713112R00 | C126: Vyrovnání povrchu krytů kamen. obaleným asfaltem | D126: t | E126: 34.375 | G126: =E126*F126 -> 0 | H126: 0 | I126: =E126*H126 -> 0 | J126: 0 | K126: =E126*J126 -> 0 | O126: 2 | AA126: 1 | AB126: 1 | AC126: 1 | AZ126: 1 | BA126: =IF(AZ126=1,G126,0) -> 0 | BB126: =IF(AZ126=2,G126,0) -> 0 | BC126: =IF(AZ126=3,G126,0) -> 0 | BD126: =IF(AZ126=4,G126,0) -> 0 | BE126: =IF(AZ126=5,G126,0) -> 0 | CA126: 1 | CB126: 1
C127: Vodovodní řad PE D63x5,8 mm: | E127: 0 | M127: Vodovodní řad PE D63x5,8 mm:
C128: Vyrovnání stávajícího povrchu v průměrné tl. 2,5 cm: | E128: 0 | M128: Vyrovnání stávajícího povrchu v průměrné tl. 2,5 cm:
C129: Komunikace KSS LK:240,00*0,025*2,5 | E129: 15 | M129: Komunikace KSS LK:240,00*0,025*2,5
C130: Místní komunikace :310,00*0,025*2,5 | E130: 19.375 | M130: Místní komunikace :310,00*0,025*2,5
A131: 27 | B131: 573231110R00 | C131: Postřik spojovací z KAE množství zbytkového asfaltu 0,3 kg/m2 | D131: m2 | E131: 550 | G131: =E131*F131 -> 0 | H131: 0.0005 | I131: =E131*H131 -> 0.275 | J131: 0 | K131: =E131*J131 -> 0 | O131: 2 | AA131: 1 | AB131: 1 | AC131: 1 | AZ131: 1 | BA131: =IF(AZ131=1,G131,0) -> 0 | BB131: =IF(AZ131=2,G131,0) -> 0 | BC131: =IF(AZ131=3,G131,0) -> 0 | BD131: =IF(AZ131=4,G131,0) -> 0 | BE131: =IF(AZ131=5,G131,0) -> 0 | CA131: 1 | CB131: 1
C132: Vodovodní řad PE D63x5,8 mm: | E132: 0 | M132: Vodovodní řad PE D63x5,8 mm:
C133: Komunikace KSS LK:240,00 | E133: 240 | M133: Komunikace KSS LK:240,00
C134: Místní komunikace :310,00 | E134: 310 | M134: Místní komunikace :310,00
A135: 28 | B135: 577131111RT2 | C135: Beton asfalt. ACO 11+ obrusný, š. do 3 m, tl. 4 cm plochy 201-1000 m2 | D135: m2 | E135: 550 | G135: =E135*F135 -> 0 | H135: 0 | I135: =E135*H135 -> 0 | J135: 0 | K135: =E135*J135 -> 0 | O135: 2 | AA135: 1 | AB135: 1 | AC135: 1 | AZ135: 1 | BA135: =IF(AZ135=1,G135,0) -> 0 | BB135: =IF(AZ135=2,G135,0) -> 0 | BC135: =IF(AZ135=3,G135,0) -> 0 | BD135: =IF(AZ135=4,G135,0) -> 0 | BE135: =IF(AZ135=5,G135,0) -> 0 | CA135: 1 | CB135: 1
C136: Vodovodní řad PE D63x5,8 mm: | E136: 0 | M136: Vodovodní řad PE D63x5,8 mm:
C137: Komunikace KSS LK:240,00 | E137: 240 | M137: Komunikace KSS LK:240,00
C138: Místní komunikace :310,00 | E138: 310 | M138: Místní komunikace :310,00
A139: 29 | B139: 599142111RRX | C139: Úprava zálivky pracovní spáry | D139: m | E139: 60 | G139: =E139*F139 -> 0 | H139: 0.00224 | I139: =E139*H139 -> 0.1344 | J139: 0 | K139: =E139*J139 -> 0 | O139: 2 | AA139: 1 | AB139: 1 | AC139: 1 | AZ139: 1 | BA139: =IF(AZ139=1,G139,0) -> 0 | BB139: =IF(AZ139=2,G139,0) -> 0 | BC139: =IF(AZ139=3,G139,0) -> 0 | BD139: =IF(AZ139=4,G139,0) -> 0 | BE139: =IF(AZ139=5,G139,0) -> 0 | CA139: 1 | CB139: 1
C140: Včetně vyčištění spár, zalití spár asfaltovou zálivkou, nátěru asfaltovým lakem a posyp drtí. | L140: Včetně vyčištění spár, zalití spár asfaltovou zálivkou, nátěru asfaltovým lakem a posyp drtí. | O140: 3
C141: Vodovodní řad PE D63x5,8 mm: | E141: 0 | M141: Vodovodní řad PE D63x5,8 mm:
C142: Komunikace KSS LK :60,00 | E142: 60 | M142: Komunikace KSS LK :60,00
A143: 30 | B143: 919731121R00 | C143: Zarovnání styčné plochy živičné tl. do 5 cm | D143: m | E143: 60 | G143: =E143*F143 -> 0 | H143: 0 | I143: =E143*H143 -> 0 | J143: 0 | K143: =E143*J143 -> 0 | O143: 2 | AA143: 1 | AB143: 1 | AC143: 1 | AZ143: 1 | BA143: =IF(AZ143=1,G143,0) -> 0 | BB143: =IF(AZ143=2,G143,0) -> 0 | BC143: =IF(AZ143=3,G143,0) -> 0 | BD143: =IF(AZ143=4,G143,0) -> 0 | BE143: =IF(AZ143=5,G143,0) -> 0 | CA143: 1 | CB143: 1
C144: Vodovodní řad PE D63x5,8 mm: | E144: 0 | M144: Vodovodní řad PE D63x5,8 mm:
C145: Komunikace KSS LK :60,00 | E145: 60 | M145: Komunikace KSS LK :60,00
B146: Celkem za | C146: 5 Komunikace | G146: =SUM(G117:G145) -> 0 | I146: =SUM(I117:I145) -> 109.47847 | K146: =SUM(K117:K145) -> 0 | O146: 4 | BA146: =SUM(BA117:BA145) -> 0 | BB146: =SUM(BB117:BB145) -> 0 | BC146: =SUM(BC117:BC145) -> 0 | BD146: =SUM(BD117:BD145) -> 0 | BE146: =SUM(BE117:BE145) -> 0
A147: Díl: | B147: 8 | C147: Trubní vedení | O147: 1
A148: 31 | B148: 850245121R00 | C148: Výřez nebo výsek na potrubí litinovém DN 80 | D148: kus | E148: 1 | G148: =E148*F148 -> 0 | H148: 0 | I148: =E148*H148 -> 0 | J148: 0 | K148: =E148*J148 -> 0 | O148: 2 | AA148: 1 | AB148: 1 | AC148: 1 | AZ148: 1 | BA148: =IF(AZ148=1,G148,0) -> 0 | BB148: =IF(AZ148=2,G148,0) -> 0 | BC148: =IF(AZ148=3,G148,0) -> 0 | BD148: =IF(AZ148=4,G148,0) -> 0 | BE148: =IF(AZ148=5,G148,0) -> 0 | CA148: 1 | CB148: 1
C149: Položky výřezu nebo výseku na potrubí z trub litinových tlakových jsou určeny pro dva řezy nebo seky prováděné na potrubí dodatečně. V položkách jsou zakalkulovány náklady na | L149: Položky výřezu nebo výseku na potrubí z trub litinových tlakových jsou určeny pro dva řezy nebo seky prováděné na potrubí dodatečně. V položkách jsou zakalkulovány náklady na | O149: 3
C150: - ohlášení uzavírání vody | L150: - ohlášení uzavírání vody | O150: 3
C151: - uzavření a otevření šoupat | L151: - uzavření a otevření šoupat | O151: 3
C152: - vypuštění a napuštění vody | L152: - vypuštění a napuštění vody | O152: 3
C153: - odvzdušnění potrubí | L153: - odvzdušnění potrubí | O153: 3
C154: - strojní nebo ruční výřez potrubí | L154: - strojní nebo ruční výřez potrubí | O154: 3
C155: - nutné úpravy výkopu v prostoru provádění | L155: - nutné úpravy výkopu v prostoru provádění | O155: 3
C156: - montáž tvarovek | L156: - montáž tvarovek | O156: 3
C157: Vodovodní řad PE D63x5,8 mm: | E157: 0 | M157: Vodovodní řad PE D63x5,8 mm:
C158: Přerušení stávajícího vodovodního řadu:1 | E158: 1 | M158: Přerušení stávajícího vodovodního řadu:1
A159: 32 | B159: 857242121R00 | C159: Montáž tvarovek litin. jednoos.přír. výkop DN 80 včetně nerezových spoj. prvků a obandážování spoje | D159: kus | E159: 9 | G159: =E159*F159 -> 0 | H159: 0.00022 | I159: =E159*H159 -> 0.00198 | J159: 0 | K159: =E159*J159 -> 0 | O159: 2 | AA159: 1 | AB159: 1 | AC159: 1 | AZ159: 1 | BA159: =IF(AZ159=1,G159,0) -> 0 | BB159: =IF(AZ159=2,G159,0) -> 0 | BC159: =IF(AZ159=3,G159,0) -> 0 | BD159: =IF(AZ159=4,G159,0) -> 0 | BE159: =IF(AZ159=5,G159,0) -> 0 | CA159: 1 | CB159: 1
C160: Položka je určena pro montáž litinových tvarovek na potrubí litinovém tlakovém přírubovém jednoosých v otevřeném výkopu, v otevřeném kanálu nebo v šachtě. | L160: Položka je určena pro montáž litinových tvarovek na potrubí litinovém tlakovém přírubovém jednoosých v otevřeném výkopu, v otevřeném kanálu nebo v šachtě. | O160: 3
C161: Součástí položky je i dodávka nerezových spojovacích prvků (šrouby, podložky, matky) a kompletního obandážování spojů. | L161: Součástí položky je i dodávka nerezových spojovacích prvků (šrouby, podložky, matky) a kompletního obandážování spojů. | O161: 3
C162: Vodovodní řad PE D63x5,8 mm: | E162: 0 | M162: Vodovodní řad PE D63x5,8 mm:
C163: Q DN50:1 | E163: 1 | M163: Q DN50:1
C164: LN + TP D63/DN50:4 | E164: 4 | M164: LN + TP D63/DN50:4
C165: N DN50:2 | E165: 2 | M165: N DN50:2
C166: FF DN50/300:2 | E166: 2 | M166: FF DN50/300:2
A167: 33 | B167: 857244121R00 | C167: Montáž tvarovek litin. odboč. přír. výkop DN 80 včetně nerezových spoj. prvků a obandážování spoje | D167: kus | E167: 2 | G167: =E167*F167 -> 0 | H167: 0.00032 | I167: =E167*H167 -> 0.00064 | J167: 0 | K167: =E167*J167 -> 0 | O167: 2 | AA167: 1 | AB167: 1 | AC167: 1 | AZ167: 1 | BA167: =IF(AZ167=1,G167,0) -> 0 | BB167: =IF(AZ167=2,G167,0) -> 0 | BC167: =IF(AZ167=3,G167,0) -> 0 | BD167: =IF(AZ167=4,G167,0) -> 0 | BE167: =IF(AZ167=5,G167,0) -> 0 | CA167: 1 | CB167: 1
C168: Položka je určena pro montáž litinových tvarovek na potrubí litinovém tlakovém přírubovém, odbočných, v otevřeném výkopu, v otevřeném kanálu nebo v šachtě. | L168: Položka je určena pro montáž litinových tvarovek na potrubí litinovém tlakovém přírubovém, odbočných, v otevřeném výkopu, v otevřeném kanálu nebo v šachtě. | O168: 3
C169: Součástí položky je i dodávka nerezových spojovacích prvků (šrouby, podložky, matky) a kompletního obandážování spojů. | L169: Součástí položky je i dodávka nerezových spojovacích prvků (šrouby, podložky, matky) a kompletního obandážování spojů. | O169: 3
C170: Vodovodní řad PE D63x5,8 mm: | E170: 0 | M170: Vodovodní řad PE D63x5,8 mm:
C171: T DN50/50:2 | E171: 2 | M171: T DN50/50:2
A172: 34 | B172: 871211121R00 | C172: Montáž trubek polyetylenových ve výkopu d 63 mm | D172: m | E172: 161.6 | G172: =E172*F172 -> 0 | H172: 0 | I172: =E172*H172 -> 0 | J172: 0 | K172: =E172*J172 -> 0 | O172: 2 | AA172: 1 | AB172: 1 | AC172: 1 | AZ172: 1 | BA172: =IF(AZ172=1,G172,0) -> 0 | BB172: =IF(AZ172=2,G172,0) -> 0 | BC172: =IF(AZ172=3,G172,0) -> 0 | BD172: =IF(AZ172=4,G172,0) -> 0 | BE172: =IF(AZ172=5,G172,0) -> 0 | CA172: 1 | CB172: 1
C173: V položce je uvažováno použití svitku. | L173: V položce je uvažováno použití svitku. | O173: 3
C174: Vodovodní řad PE D63x5,8 mm:161,60 | E174: 161.6 | M174: Vodovodní řad PE D63x5,8 mm:161,60
A175: 35 | B175: 877212121R00 | C175: Přirážka za 1 spoj elektrotvarovky d 63 mm | D175: kus | E175: 21 | G175: =E175*F175 -> 0 | H175: 0 | I175: =E175*H175 -> 0 | J175: 0 | K175: =E175*J175 -> 0 | O175: 2 | AA175: 1 | AB175: 1 | AC175: 1 | AZ175: 1 | BA175: =IF(AZ175=1,G175,0) -> 0 | BB175: =IF(AZ175=2,G175,0) -> 0 | BC175: =IF(AZ175=3,G175,0) -> 0 | BD175: =IF(AZ175=4,G175,0) -> 0 | BE175: =IF(AZ175=5,G175,0) -> 0 | CA175: 1 | CB175: 1
C176: Vodovodní řad PE D63x5,8 mm: | E176: 0 | M176: Vodovodní řad PE D63x5,8 mm:
C177: Elektrospojky PE D63:16 | E177: 16 | M177: Elektrospojky PE D63:16
C178: Oblouk PE D63/45°:4 | E178: 4 | M178: Oblouk PE D63/45°:4
C179: Oblouk PE D63/30°:1 | E179: 1 | M179: Oblouk PE D63/30°:1
A180: 36 | B180: 891211111R00 | C180: Montáž vodovodních šoupátek ve výkopu DN 50 včetně nerezových spoj. prvků a obandážování spoje | D180: kus | E180: 2 | G180: =E180*F180 -> 0 | H180: 0.00021 | I180: =E180*H180 -> 0.00042 | J180: 0 | K180: =E180*J180 -> 0 | O180: 2 | AA180: 1 | AB180: 1 | AC180: 1 | AZ180: 1 | BA180: =IF(AZ180=1,G180,0) -> 0 | BB180: =IF(AZ180=2,G180,0) -> 0 | BC180: =IF(AZ180=3,G180,0) -> 0 | BD180: =IF(AZ180=4,G180,0) -> 0 | BE180: =IF(AZ180=5,G180,0) -> 0 | CA180: 1 | CB180: 1
C181: Položka je určena pro montáž vodovodních šoupátek v otevřeném výkopu nebo v šachtách s osazením zemní soupravy (bez poklopů). V položce jsou zakalkulovány i náklady na vytvoření otvorů ve stropech šachet pro prostup zemních souprav šoupátek. | L181: Položka je určena pro montáž vodovodních šoupátek v otevřeném výkopu nebo v šachtách s osazením zemní soupravy (bez poklopů). V položce jsou zakalkulovány i náklady na vytvoření otvorů ve stropech šachet pro prostup zemních souprav šoupátek. | O181: 3
C182: Součástí položky je i dodávka nerezových spojovacích prvků (šrouby, podložky, matky) a kompletního obandážování spojů. | L182: Součástí položky je i dodávka nerezových spojovacích prvků (šrouby, podložky, matky) a kompletního obandážování spojů. | O182: 3
C183: Vodovodní řad PE D63x5,8 mm: | E183: 0 | M183: Vodovodní řad PE D63x5,8 mm:
C184: Šoupě DN50:2 | E184: 2 | M184: Šoupě DN50:2
A185: 37 | B185: 891247111R00 | C185: Montáž hydrantů podzemních DN 80 včetně nerezových spoj. prvků a obandážování spoje | D185: kus | E185: 2 | G185: =E185*F185 -> 0 | H185: 0.00011 | I185: =E185*H185 -> 0.00022 | J185: 0 | K185: =E185*J185 -> 0 | O185: 2 | AA185: 1 | AB185: 1 | AC185: 1 | AZ185: 1 | BA185: =IF(AZ185=1,G185,0) -> 0 | BB185: =IF(AZ185=2,G185,0) -> 0 | BC185: =IF(AZ185=3,G185,0) -> 0 | BD185: =IF(AZ185=4,G185,0) -> 0 | BE185: =IF(AZ185=5,G185,0) -> 0 | CA185: 1 | CB185: 1
C186: Položka je určena pro montáž hydrantů podzemních (bez osazení poklopů) na potrubí včetně drenážního obalu. | L186: Položka je určena pro montáž hydrantů podzemních (bez osazení poklopů) na potrubí včetně drenážního obalu. | O186: 3
C187: Součástí položky je i dodávka nerezových spojovacích prvků (šrouby, podložky, matky) a kompletního obandážování spojů. | L187: Součástí položky je i dodávka nerezových spojovacích prvků (šrouby, podložky, matky) a kompletního obandážování spojů. | O187: 3
C188: Vodovodní řad PE D63x5,8 mm: | E188: 0 | M188: Vodovodní řad PE D63x5,8 mm:
C189: Proplachovací souprava D810 DN50/1,5:2 | E189: 2 | M189: Proplachovací souprava D810 DN50/1,5:2
A190: 38 | B190: 891249111R00 | C190: Montáž navrtávacích pasů DN 80 s ventilem | D190: kus | E190: 5 | G190: =E190*F190 -> 0 | H190: 0 | I190: =E190*H190 -> 0 | J190: 0 | K190: =E190*J190 -> 0 | O190: 2 | AA190: 1 | AB190: 1 | AC190: 1 | AZ190: 1 | BA190: =IF(AZ190=1,G190,0) -> 0 | BB190: =IF(AZ190=2,G190,0) -> 0 | BC190: =IF(AZ190=3,G190,0) -> 0 | BD190: =IF(AZ190=4,G190,0) -> 0 | BE190: =IF(AZ190=5,G190,0) -> 0 | CA190: 1 | CB190: 1
C191: Vodovodní řad PE D63x5,8 mm: | E191: 0 | M191: Vodovodní řad PE D63x5,8 mm:
C192: DAV (KIT) PE D63/32 Pro VP:5 | E192: 5 | M192: DAV (KIT) PE D63/32 Pro VP:5
A193: 39 | B193: 892233111R00 | C193: Desinfekce vodovodního potrubí DN 70 | D193: m | E193: 161.6 | G193: =E193*F193 -> 0 | H193: 0 | I193: =E193*H193 -> 0 | J193: 0 | K193: =E193*J193 -> 0 | O193: 2 | AA193: 1 | AB193: 1 | AC193: 1 | AZ193: 1 | BA193: =IF(AZ193=1,G193,0) -> 0 | BB193: =IF(AZ193=2,G193,0) -> 0 | BC193: =IF(AZ193=3,G193,0) -> 0 | BD193: =IF(AZ193=4,G193,0) -> 0 | BE193: =IF(AZ193=5,G193,0) -> 0 | CA193: 1 | CB193: 1
C194: V položce jsou zakalkulovány náklady na napuštění a vypuštění vody, dodání vody a desinfekčního prostředku a na bakteriologický rozbor vody. | L194: V položce jsou zakalkulovány náklady na napuštění a vypuštění vody, dodání vody a desinfekčního prostředku a na bakteriologický rozbor vody. | O194: 3
C195: Vodovodní řad PE D63x5,8 mm:161,60 | E195: 161.6 | M195: Vodovodní řad PE D63x5,8 mm:161,60
A196: 40 | B196: 892241111R00 | C196: Tlaková zkouška vodovodního potrubí DN 80 včetně zajištění konců potrubí | D196: m | E196: 161.6 | G196: =E196*F196 -> 0 | H196: 0 | I196: =E196*H196 -> 0 | J196: 0 | K196: =E196*J196 -> 0 | O196: 2 | AA196: 1 | AB196: 1 | AC196: 1 | AZ196: 1 | BA196: =IF(AZ196=1,G196,0) -> 0 | BB196: =IF(AZ196=2,G196,0) -> 0 | BC196: =IF(AZ196=3,G196,0) -> 0 | BD196: =IF(AZ196=4,G196,0) -> 0 | BE196: =IF(AZ196=5,G196,0) -> 0 | CA196: 1 | CB196: 1
C197: V položce jsou započteny náklady na přísun, montáž, demontáž a odsun zkoušecího čerpadla, napuštění tlakovou vodou a dodání vody pro tlakovou zkoušku. | L197: V položce jsou započteny náklady na přísun, montáž, demontáž a odsun zkoušecího čerpadla, napuštění tlakovou vodou a dodání vody pro tlakovou zkoušku. | O197: 3
C198: Vodovodní řad PE D63x5,8 mm:161,60 | E198: 161.6 | M198: Vodovodní řad PE D63x5,8 mm:161,60
A199: 41 | B199: 899713111RRX | C199: Orientační tabulky na sloupku ocelovém, betonovém | D199: kus | E199: 9 | G199: =E199*F199 -> 0 | H199: 0.00024 | I199: =E199*H199 -> 0.00216 | J199: 0 | K199: =E199*J199 -> 0 | O199: 2 | AA199: 1 | AB199: 1 | AC199: 1 | AZ199: 1 | BA199: =IF(AZ199=1,G199,0) -> 0 | BB199: =IF(AZ199=2,G199,0) -> 0 | BC199: =IF(AZ199=3,G199,0) -> 0 | BD199: =IF(AZ199=4,G199,0) -> 0 | BE199: =IF(AZ199=5,G199,0) -> 0 | CA199: 1 | CB199: 1
C200: Položka platí pro orientační tabulky na vodovodních a kanalizačních řadech. V položce jsou zakalkulovány náklady na dodání a připevnění tabulky a na osazení sloupku. V položce jsou zakalkulovány náklady na zemní práce a na dodání sloupků (betonových nebo ocelových s betonovými patkami) | L200: Položka platí pro orientační tabulky na vodovodních a kanalizačních řadech. V položce jsou zakalkulovány náklady na dodání a připevnění tabulky a na osazení sloupku. V položce jsou zakalkulovány náklady na zemní práce a na dodání sloupků (betonových nebo ocelových s betonovými patkami) | O200: 3
C201: Vodovodní řad PE D63x5,8 mm: | E201: 0 | M201: Vodovodní řad PE D63x5,8 mm:
C202: Pro Šoupě DN50:2 | E202: 2 | M202: Pro Šoupě DN50:2
... 125 more rows

Sheet 310 3410310 KL
A1: POLOŽKOVÝ ROZPOČET
A2: Rozpočet | C2: 3410/310 | D2: Vodovodní přípojky | F2: JKSO | G2: 827.19.A1
A4: Objekt | F4: SKP
A5: 310 | C5: Vodovodní přípojky | F5: Měrná jednotka | G5: m
A6: Stavba | F6: Počet jednotek | G6: 0
A7: 3410 | C7: Prodloužení vodovodního řadu, Vyskeř - Drahoňovice | F7: Náklady na m.j. | G7: =IF(G6=0,,ROUND((F30+F32)/G6,1)) -> 0
A8: Projektant | C8: PVK Projekt s.r.o. | F8: Typ rozpočtu
A9: Zpracovatel projektu
A10: Objednatel | C10: Vodohospodářské sdružení Turnov
A11: Dodavatel | C11: . | F11: Zakázkové číslo
A12: Rozpočtoval | F12: Počet listů
A13: ROZPOČTOVÉ NÁKLADY
A14: Základní rozpočtové náklady
B15: HSV celkem | C15: ='310 3410310 Rek'!E12 -> 0
A16: Z | B16: PSV celkem | C16: ='310 3410310 Rek'!F12 -> 0
A17: R | B17: M práce celkem | C17: ='310 3410310 Rek'!H12 -> 0
A18: N | B18: M dodávky celkem | C18: ='310 3410310 Rek'!G12 -> 0
A19: ZRN celkem | C19: =SUM(C15:C18) -> 0
A21: HZS | C21: ='310 3410310 Rek'!I12 -> 0
A22: ZRN+HZS | C22: =C19+C21 -> 0
A23: ZRN+ost.náklady+HZS | C23: =C22+G23 -> 0
A24: Vypracoval | D24: Za zhotovitele | F24: Za objednatele
A25: Jméno : | D25: Jméno : | F25: Jméno :
A26: Datum : | D26: Datum : | F26: Datum :
A28: Podpis : | D28: Podpis: | F28: Podpis:
A30: Základ pro DPH | C30: 21 | D30: % | F30: =C23-F32 -> 0
A31: DPH | C31: =C30 -> 21 | D31: % | F31: =ROUND(PRODUCT(F30,C31/100),0) -> 0
A32: Základ pro DPH | C32: 0 | D32: % | F32: 0
A33: DPH | C33: =C32 -> 0 | D33: % | F33: =ROUND(PRODUCT(F32,C33/100),0) -> 0
A34: CENA ZA OBJEKT CELKEM | F34: =ROUND(SUM(F30:F33),0) -> 0
A36: Poznámka :

Sheet 310 3410310 Rek
A1: Stavba : | C1: 3410 Prodloužení vodovodního řadu, Vyskeř - Drahoňovice | G1: Rozpočet : | H1: 3410/310
A2: Objekt : | C2: 310 Vodovodní přípojky | G2: Vodovodní přípojky
A4: REKAPITULACE STAVEBNÍCH DÍLŮ
B6: Stavební díl | E6: HSV | F6: PSV | G6: Dodávka | H6: Montáž | I6: HZS
A7: ='310 3410310 Pol'!B7 -> 1 | B7: ='310 3410310 Pol'!C7 -> Zemní práce | E7: ='310 3410310 Pol'!BA160 -> 0 | F7: ='310 3410310 Pol'!BB160 -> 0 | G7: ='310 3410310 Pol'!BC160 -> 0 | H7: ='310 3410310 Pol'!BD160 -> 0 | I7: ='310 3410310 Pol'!BE160 -> 0
A8: ='310 3410310 Pol'!B161 -> 45 | B8: ='310 3410310 Pol'!C161 -> Podkladní a vedlejší konstrukce | E8: ='310 3410310 Pol'!BA169 -> 0 | F8: ='310 3410310 Pol'!BB169 -> 0 | G8: ='310 3410310 Pol'!BC169 -> 0 | H8: ='310 3410310 Pol'!BD169 -> 0 | I8: ='310 3410310 Pol'!BE169 -> 0
A9: ='310 3410310 Pol'!B170 -> 5 | B9: ='310 3410310 Pol'!C170 -> Komunikace | E9: ='310 3410310 Pol'!BA177 -> 0 | F9: ='310 3410310 Pol'!BB177 -> 0 | G9: ='310 3410310 Pol'!BC177 -> 0 | H9: ='310 3410310 Pol'!BD177 -> 0 | I9: ='310 3410310 Pol'!BE177 -> 0
A10: ='310 3410310 Pol'!B178 -> 8 | B10: ='310 3410310 Pol'!C178 -> Trubní vedení | E10: ='310 3410310 Pol'!BA274 -> 0 | F10: ='310 3410310 Pol'!BB274 -> 0 | G10: ='310 3410310 Pol'!BC274 -> 0 | H10: ='310 3410310 Pol'!BD274 -> 0 | I10: ='310 3410310 Pol'!BE274 -> 0
A11: ='310 3410310 Pol'!B275 -> 99 | B11: ='310 3410310 Pol'!C275 -> Staveništní přesun hmot | E11: ='310 3410310 Pol'!BA278 -> 0 | F11: ='310 3410310 Pol'!BB278 -> 0 | G11: ='310 3410310 Pol'!BC278 -> 0 | H11: ='310 3410310 Pol'!BD278 -> 0 | I11: ='310 3410310 Pol'!BE278 -> 0
B12: CELKEM OBJEKT | E12: =SUM(E7:E11) -> 0 | F12: =SUM(F7:F11) -> 0 | G12: =SUM(G7:G11) -> 0 | H12: =SUM(H7:H11) -> 0 | I12: =SUM(I7:I11) -> 0

Sheet 310 3410310 Pol
A1: Položkový rozpočet
A3: Stavba : | C3: 3410 Prodloužení vodovodního řadu, Vyskeř - Drahoňovice | E3: Rozpočet: | F3: ='310 3410310 Rek'!H1 -> 3410/310
A4: Objekt : | C4: 310 Vodovodní přípojky | E4: ='310 3410310 Rek'!G2 -> Vodovodní přípojky
A6: P.č. | B6: Číslo položky | C6: Název položky | D6: MJ | E6: množství | F6: cena / MJ | G6: celkem (Kč) | H6: Jednotková hmotnost | I6: Celková hmotnost | J6: Jednotková dem.hmot. | K6: Celková dem.hmot.
A7: Díl: | B7: 1 | C7: Zemní práce | O7: 1
A8: 1 | B8: 113107625R00 | C8: Odstranění podkladu nad 50 m2,kam.drcené tl.25 cm | D8: m2 | E8: 2.1 | G8: =E8*F8 -> 0 | H8: 0 | I8: =E8*H8 -> 0 | J8: -0.55 | K8: =E8*J8 -> -1.155 | O8: 2 | AA8: 1 | AB8: 1 | AC8: 1 | AZ8: 1 | BA8: =IF(AZ8=1,G8,0) -> 0 | BB8: =IF(AZ8=2,G8,0) -> 0 | BC8: =IF(AZ8=3,G8,0) -> 0 | BD8: =IF(AZ8=4,G8,0) -> 0 | BE8: =IF(AZ8=5,G8,0) -> 0 | CA8: 1 | CB8: 1
C9: Vodovodní přípojky PE D32x3,0 mm: | E9: 0 | M9: Vodovodní přípojky PE D32x3,0 mm:
C10: VP pro ppč. 3778:3,00*0,70 | E10: 2.1 | M10: VP pro ppč. 3778:3,00*0,70
A11: 2 | B11: 113108410R00 | C11: Odstranění asfaltové vrstvy pl.nad 50 m2, tl.10 cm | D11: m2 | E11: 2.1 | G11: =E11*F11 -> 0 | H11: 0 | I11: =E11*H11 -> 0 | J11: -0.22 | K11: =E11*J11 -> -0.462 | O11: 2 | AA11: 1 | AB11: 1 | AC11: 1 | AZ11: 1 | BA11: =IF(AZ11=1,G11,0) -> 0 | BB11: =IF(AZ11=2,G11,0) -> 0 | BC11: =IF(AZ11=3,G11,0) -> 0 | BD11: =IF(AZ11=4,G11,0) -> 0 | BE11: =IF(AZ11=5,G11,0) -> 0 | CA11: 1 | CB11: 1
C12: Vodovodní přípojky PE D32x3,0 mm: | E12: 0 | M12: Vodovodní přípojky PE D32x3,0 mm:
C13: VP pro ppč. 3778:3,00*0,70 | E13: 2.1 | M13: VP pro ppč. 3778:3,00*0,70
A14: 3 | B14: 121100002RAA | C14: Sejmutí ornice a uložení na deponii zpětný přesun, rozprostření v tl. 20 cm | D14: m3 | E14: 45.48 | G14: =E14*F14 -> 0 | H14: 0 | I14: =E14*H14 -> 0 | J14: 0 | K14: =E14*J14 -> 0 | O14: 2 | AA14: 1 | AB14: 1 | AC14: 1 | AZ14: 1 | BA14: =IF(AZ14=1,G14,0) -> 0 | BB14: =IF(AZ14=2,G14,0) -> 0 | BC14: =IF(AZ14=3,G14,0) -> 0 | BD14: =IF(AZ14=4,G14,0) -> 0 | BE14: =IF(AZ14=5,G14,0) -> 0 | CA14: 1 | CB14: 1
C15: Vodovodní přípojky PE D32x3,0 mm: | E15: 0 | M15: Vodovodní přípojky PE D32x3,0 mm:
C16: VP pro ppč. 3778:(8,80+2,00-3,00)*2,00*0,20 | E16: 3.12 | M16: VP pro ppč. 3778:(8,80+2,00-3,00)*2,00*0,20
C17: VP pro čp. 8:(2,80+2,00)*2,00*0,20 | E17: 1.92 | M17: VP pro čp. 8:(2,80+2,00)*2,00*0,20
C18: VP pro čp. 6:(4,60+59,90)*2,00*0,20 | E18: 25.8 | M18: VP pro čp. 6:(4,60+59,90)*2,00*0,20
C19: VP pro čp. 2:(5,00+21,70)*2,00*0,20 | E19: 10.68 | M19: VP pro čp. 2:(5,00+21,70)*2,00*0,20
C20: VP pro čp. 55:(15,90-6,00)*2,00*0,20 | E20: 3.96 | M20: VP pro čp. 55:(15,90-6,00)*2,00*0,20
A21: 4 | B21: 130001101RRX | C21: Příplatek za ztížené hloubení v blízkosti vedení | D21: m3 | E21: 17.6258 | G21: =E21*F21 -> 0 | H21: 0 | I21: =E21*H21 -> 0 | J21: 0 | K21: =E21*J21 -> 0 | O21: 2 | AA21: 1 | AB21: 1 | AC21: 1 | AZ21: 1 | BA21: =IF(AZ21=1,G21,0) -> 0 | BB21: =IF(AZ21=2,G21,0) -> 0 | BC21: =IF(AZ21=3,G21,0) -> 0 | BD21: =IF(AZ21=4,G21,0) -> 0 | BE21: =IF(AZ21=5,G21,0) -> 0 | CA21: 1 | CB21: 1
C22: Včetně případných nutných dokopávem a ručního výkopu podél sousedících inženýrských sítí | L22: Včetně případných nutných dokopávem a ručního výkopu podél sousedících inženýrských sítí | O22: 3
C23: Výkopy - průměrná hl. výkopů 1,60 m: | E23: 0 | M23: Výkopy - průměrná hl. výkopů 1,60 m:
C24: Vodovodní přípojky PE D32x3,0 mm: | E24: 0 | M24: Vodovodní přípojky PE D32x3,0 mm:
C25: V hornině tř. 3 - 4 - 14%:125,8985*0,14 | E25: 17.6258 | M25: V hornině tř. 3 - 4 - 14%:125,8985*0,14
A26: 5 | B26: 132201212R00 | C26: Hloubení rýh š.do 200 cm hor.3 do 1000m3,STROJNĚ | D26: m3 | E26: 62.9492 | G26: =E26*F26 -> 0 | H26: 0 | I26: =E26*H26 -> 0 | J26: 0 | K26: =E26*J26 -> 0 | O26: 2 | AA26: 1 | AB26: 1 | AC26: 1 | AZ26: 1 | BA26: =IF(AZ26=1,G26,0) -> 0 | BB26: =IF(AZ26=2,G26,0) -> 0 | BC26: =IF(AZ26=3,G26,0) -> 0 | BD26: =IF(AZ26=4,G26,0) -> 0 | BE26: =IF(AZ26=5,G26,0) -> 0 | CA26: 1 | CB26: 1
C27: Položka obsahuje hloubení rýh traktorbagrem, naložení výkopku na dopravní prostředek pro svislé, nebo vodorovné přemístění, popř. přemístění výkopku do 3 m (po povrchu území), případné zajištění rypadel polštáři, udržování pracoviště a ochranu výkopiště proti stékání srážkové vody z okolního terénu i s jejím odvodněním, nebo odvedením, přesekání a odstranění kořenů ve výkopišti, odstranění napadávek, urovnání dna výkopu. | L27: Položka obsahuje hloubení rýh traktorbagrem, naložení výkopku na dopravní prostředek pro svislé, nebo vodorovné přemístění, popř. přemístění výkopku do 3 m (po povrchu území), případné zajištění rypadel polštáři, udržování pracoviště a ochranu výkopiště proti stékání srážkové vody z okolního terénu i s jejím odvodněním, nebo odvedením, přesekání a odstranění kořenů ve výkopišti, odstranění napadávek, urovnání dna výkopu. | O27: 3
C28: Výkopy - průměrná hl. výkopů 1,60 m: | E28: 0 | M28: Výkopy - průměrná hl. výkopů 1,60 m:
C29: Vodovodní přípojky PE D32x3,0 mm: | E29: 0 | M29: Vodovodní přípojky PE D32x3,0 mm:
C30: Začátek provozního součtu | E30: 0 | M30: Začátek provozního součtu
C31: VP pro ppč. 3778:(8,80-3,00)*0,70*(1,60-0,20)+3,00*0,70*(1,60-0,35) | E31: 8.309 | M31: VP pro ppč. 3778:(8,80-3,00)*0,70*(1,60-0,20)+3,00*0,70*(1,60-0,35)
C32: VP pro čp. 8:(2,80+2,00)*0,70*(1,60-0,20) | E32: 4.704 | M32: VP pro čp. 8:(2,80+2,00)*0,70*(1,60-0,20)
C33: VP pro čp. 6:(4,60+59,90)*0,70*(1,60-0,20) | E33: 63.21 | M33: VP pro čp. 6:(4,60+59,90)*0,70*(1,60-0,20)
C34: VP pro čp. 2:(5,00+21,70)*0,70*(1,60-0,20) | E34: 26.166 | M34: VP pro čp. 2:(5,00+21,70)*0,70*(1,60-0,20)
C35: VP pro čp. 55:(15,90-6,00)*0,70*(1,60-0,20) | E35: 9.702 | M35: VP pro čp. 55:(15,90-6,00)*0,70*(1,60-0,20)
C36: Výkopy pro VŠ: | E36: 0 | M36: Výkopy pro VŠ:
C37: VP pro ppč. 3778:1,50*1,50*(1,95-0,20) | E37: 3.9375 | M37: VP pro ppč. 3778:1,50*1,50*(1,95-0,20)
C38: VP pro čp. 8:1,50*1,50*(1,95-0,20)-1,50*0,70*(1,60-0,20) | E38: 2.4675 | M38: VP pro čp. 8:1,50*1,50*(1,95-0,20)-1,50*0,70*(1,60-0,20)
C39: VP pro čp. 6:1,50*1,50*(1,95-0,20)-1,50*0,70*(1,60-0,20) | E39: 2.4675 | M39: VP pro čp. 6:1,50*1,50*(1,95-0,20)-1,50*0,70*(1,60-0,20)
C40: VP pro čp. 2:1,50*1,50*(1,95-0,20)-1,50*0,70*(1,60-0,20) | E40: 2.4675 | M40: VP pro čp. 2:1,50*1,50*(1,95-0,20)-1,50*0,70*(1,60-0,20)
C41: VP pro čp. 55:1,50*1,50*(1,95-0,20)-1,50*0,70*(1,60-0,20) | E41: 2.4675 | M41: VP pro čp. 55:1,50*1,50*(1,95-0,20)-1,50*0,70*(1,60-0,20)
C42: Konec provozního součtu | E42: 125.8985 | M42: Konec provozního součtu
C43: V hornině tř. 3 - 50%:125,8985*0,5 | E43: 62.9492 | M43: V hornině tř. 3 - 50%:125,8985*0,5
A44: 6 | B44: 132201219R00 | C44: Přípl.za lepivost,hloubení rýh 200cm,hor.3,STROJNĚ | D44: m3 | E44: 31.4746 | G44: =E44*F44 -> 0 | H44: 0 | I44: =E44*H44 -> 0 | J44: 0 | K44: =E44*J44 -> 0 | O44: 2 | AA44: 1 | AB44: 1 | AC44: 1 | AZ44: 1 | BA44: =IF(AZ44=1,G44,0) -> 0 | BB44: =IF(AZ44=2,G44,0) -> 0 | BC44: =IF(AZ44=3,G44,0) -> 0 | BD44: =IF(AZ44=4,G44,0) -> 0 | BE44: =IF(AZ44=5,G44,0) -> 0 | CA44: 1 | CB44: 1
C45: Výkopy - průměrná hl. výkopů 1,60 m: | E45: 0 | M45: Výkopy - průměrná hl. výkopů 1,60 m:
C46: Vodovodní přípojky PE D32x3,0 mm: | E46: 0 | M46: Vodovodní přípojky PE D32x3,0 mm:
C47: V hornině tř. 3 - 50%:125,8985*0,5*0,5 | E47: 31.4746 | M47: V hornině tř. 3 - 50%:125,8985*0,5*0,5
A48: 7 | B48: 132301212R00 | C48: Hloubení rýh š.do 200 cm hor.4 do 1000 m3, STROJNĚ | D48: m3 | E48: 62.9492 | G48: =E48*F48 -> 0 | H48: 0 | I48: =E48*H48 -> 0 | J48: 0 | K48: =E48*J48 -> 0 | O48: 2 | AA48: 1 | AB48: 1 | AC48: 1 | AZ48: 1 | BA48: =IF(AZ48=1,G48,0) -> 0 | BB48: =IF(AZ48=2,G48,0) -> 0 | BC48: =IF(AZ48=3,G48,0) -> 0 | BD48: =IF(AZ48=4,G48,0) -> 0 | BE48: =IF(AZ48=5,G48,0) -> 0 | CA48: 1 | CB48: 1
C49: Položka obsahuje hloubení rýh traktorbagrem, naložení výkopku na dopravní prostředek pro svislé, nebo vodorovné přemístění, popř. přemístění výkopku do 3 m (po povrchu území), případné zajištění rypadel polštáři, udržování pracoviště a ochranu výkopiště proti stékání srážkové vody z okolního terénu i s jejím odvodněním, nebo odvedením, přesekání a odstranění kořenů ve výkopišti, odstranění napadávek, urovnání dna výkopu. | L49: Položka obsahuje hloubení rýh traktorbagrem, naložení výkopku na dopravní prostředek pro svislé, nebo vodorovné přemístění, popř. přemístění výkopku do 3 m (po povrchu území), případné zajištění rypadel polštáři, udržování pracoviště a ochranu výkopiště proti stékání srážkové vody z okolního terénu i s jejím odvodněním, nebo odvedením, přesekání a odstranění kořenů ve výkopišti, odstranění napadávek, urovnání dna výkopu. | O49: 3
C50: Výkopy - průměrná hl. výkopů 1,60 m: | E50: 0 | M50: Výkopy - průměrná hl. výkopů 1,60 m:
C51: Vodovodní přípojky PE D32x3,0 mm: | E51: 0 | M51: Vodovodní přípojky PE D32x3,0 mm:
C52: V hornině tř. 4 - 50%:125,8985*0,5 | E52: 62.9492 | M52: V hornině tř. 4 - 50%:125,8985*0,5
A53: 8 | B53: 132301219R00 | C53: Přípl.za lepivost,hloubení rýh 200cm,hor.4,STROJNĚ | D53: m3 | E53: 31.4746 | G53: =E53*F53 -> 0 | H53: 0 | I53: =E53*H53 -> 0 | J53: 0 | K53: =E53*J53 -> 0 | O53: 2 | AA53: 1 | AB53: 1 | AC53: 1 | AZ53: 1 | BA53: =IF(AZ53=1,G53,0) -> 0 | BB53: =IF(AZ53=2,G53,0) -> 0 | BC53: =IF(AZ53=3,G53,0) -> 0 | BD53: =IF(AZ53=4,G53,0) -> 0 | BE53: =IF(AZ53=5,G53,0) -> 0 | CA53: 1 | CB53: 1
C54: Výkopy - průměrná hl. výkopů 1,60 m: | E54: 0 | M54: Výkopy - průměrná hl. výkopů 1,60 m:
C55: Vodovodní přípojky PE D32x3,0 mm: | E55: 0 | M55: Vodovodní přípojky PE D32x3,0 mm:
C56: V hornině tř. 4 - 50%:125,8985*0,5*0,5 | E56: 31.4746 | M56: V hornině tř. 4 - 50%:125,8985*0,5*0,5
A57: 9 | B57: 141721101R00 | C57: Řízené protlačení a vtažení PE d 110 mm, hor.1 - 4 | D57: m | E57: 6 | G57: =E57*F57 -> 0 | H57: 0.00348 | I57: =E57*H57 -> 0.02088 | J57: 0 | K57: =E57*J57 -> 0 | O57: 2 | AA57: 1 | AB57: 1 | AC57: 1 | AZ57: 1 | BA57: =IF(AZ57=1,G57,0) -> 0 | BB57: =IF(AZ57=2,G57,0) -> 0 | BC57: =IF(AZ57=3,G57,0) -> 0 | BD57: =IF(AZ57=4,G57,0) -> 0 | BE57: =IF(AZ57=5,G57,0) -> 0 | CA57: 1 | CB57: 1
C58: Jedná se o bezvýkopovou technologii horizontálně řízeného vrtání a vtažení potrubí na principu rozplavování a rozrušování zeminy pomocí vysokotlaké směsi vody a bentonitu. | L58: Jedná se o bezvýkopovou technologii horizontálně řízeného vrtání a vtažení potrubí na principu rozplavování a rozrušování zeminy pomocí vysokotlaké směsi vody a bentonitu. | O58: 3
C59: V položce je započteno : - provedení pilotního vrtu, | L59: V položce je započteno : - provedení pilotního vrtu, | O59: 3
C60: - potřebné rozšíření vrtu, | L60: - potřebné rozšíření vrtu, | O60: 3
C61: - vtažení potrubí, | L61: - vtažení potrubí, | O61: 3
C62: - svařování vtahovaného potrubí. | L62: - svařování vtahovaného potrubí. | O62: 3
C63: V položce není započteno: - zemní práce nutné pro provedení prací, | L63: V položce není započteno: - zemní práce nutné pro provedení prací, | O63: 3
C64: - případné čerpání vody, | L64: - případné čerpání vody, | O64: 3
C65: - montáž vedení, slouží-li vtahovaná trubka jako ochranné potrubí, | L65: - montáž vedení, slouží-li vtahovaná trubka jako ochranné potrubí, | O65: 3
C66: - dodání vtahovaných trubek. | L66: - dodání vtahovaných trubek. | O66: 3
C67: Vodovodní přípojky PE D32x3,0 mm: | E67: 0 | M67: Vodovodní přípojky PE D32x3,0 mm:
C68: VP pro čp. 55: | E68: 0 | M68: VP pro čp. 55:
C69: Řízený protlak pod komunikací KSS LK pro chráničku PE D63:6,00 | E69: 6 | M69: Řízený protlak pod komunikací KSS LK pro chráničku PE D63:6,00
A70: 10 | B70: 151101101R00 | C70: Pažení a rozepření stěn rýh - příložné - hl.do 2 m | D70: m2 | E70: 29.25 | G70: =E70*F70 -> 0 | H70: 0.00099 | I70: =E70*H70 -> 0.0289575 | J70: 0 | K70: =E70*J70 -> 0 | O70: 2 | AA70: 1 | AB70: 1 | AC70: 1 | AZ70: 1 | BA70: =IF(AZ70=1,G70,0) -> 0 | BB70: =IF(AZ70=2,G70,0) -> 0 | BC70: =IF(AZ70=3,G70,0) -> 0 | BD70: =IF(AZ70=4,G70,0) -> 0 | BE70: =IF(AZ70=5,G70,0) -> 0 | CA70: 1 | CB70: 1
C71: Výkopy - průměrná hl. výkopů 1,60 m: | E71: 0 | M71: Výkopy - průměrná hl. výkopů 1,60 m:
C72: Vodovodní přípojky PE D32x3,0 mm: | E72: 0 | M72: Vodovodní přípojky PE D32x3,0 mm:
C73: Výkopy pro VŠ: | E73: 0 | M73: Výkopy pro VŠ:
C74: VP pro ppč. 3778:1,50*1,95*2 | E74: 5.85 | M74: VP pro ppč. 3778:1,50*1,95*2
C75: VP pro čp. 8:1,50*1,95*2 | E75: 5.85 | M75: VP pro čp. 8:1,50*1,95*2
C76: VP pro čp. 6:1,50*1,95*2 | E76: 5.85 | M76: VP pro čp. 6:1,50*1,95*2
C77: VP pro čp. 2:1,50*1,95*2 | E77: 5.85 | M77: VP pro čp. 2:1,50*1,95*2
C78: VP pro čp. 55:1,50*1,95*2 | E78: 5.85 | M78: VP pro čp. 55:1,50*1,95*2
A79: 11 | B79: 151101111R00 | C79: Odstranění pažení stěn rýh - příložné - hl. do 2 m | D79: m2 | E79: 29.25 | G79: =E79*F79 -> 0 | H79: 0 | I79: =E79*H79 -> 0 | J79: 0 | K79: =E79*J79 -> 0 | O79: 2 | AA79: 1 | AB79: 1 | AC79: 1 | AZ79: 1 | BA79: =IF(AZ79=1,G79,0) -> 0 | BB79: =IF(AZ79=2,G79,0) -> 0 | BC79: =IF(AZ79=3,G79,0) -> 0 | BD79: =IF(AZ79=4,G79,0) -> 0 | BE79: =IF(AZ79=5,G79,0) -> 0 | CA79: 1 | CB79: 1
C80: Výkopy - průměrná hl. výkopů 1,60 m: | E80: 0 | M80: Výkopy - průměrná hl. výkopů 1,60 m:
C81: Vodovodní přípojky PE D32x3,0 mm: | E81: 0 | M81: Vodovodní přípojky PE D32x3,0 mm:
C82: Výkopy pro VŠ: | E82: 0 | M82: Výkopy pro VŠ:
C83: VP pro ppč. 3778:1,50*1,95*2 | E83: 5.85 | M83: VP pro ppč. 3778:1,50*1,95*2
C84: VP pro čp. 8:1,50*1,95*2 | E84: 5.85 | M84: VP pro čp. 8:1,50*1,95*2
C85: VP pro čp. 6:1,50*1,95*2 | E85: 5.85 | M85: VP pro čp. 6:1,50*1,95*2
C86: VP pro čp. 2:1,50*1,95*2 | E86: 5.85 | M86: VP pro čp. 2:1,50*1,95*2
C87: VP pro čp. 55:1,50*1,95*2 | E87: 5.85 | M87: VP pro čp. 55:1,50*1,95*2
A88: 12 | B88: 162701105RSZ | C88: Vodorovné přemístění výkopku z hor.1-7 na skládku zhotovitele | D88: m3 | E88: 48.0315 | G88: =E88*F88 -> 0 | H88: 0 | I88: =E88*H88 -> 0 | J88: 0 | K88: =E88*J88 -> 0 | O88: 2 | AA88: 1 | AB88: 1 | AC88: 1 | AZ88: 1 | BA88: =IF(AZ88=1,G88,0) -> 0 | BB88: =IF(AZ88=2,G88,0) -> 0 | BC88: =IF(AZ88=3,G88,0) -> 0 | BD88: =IF(AZ88=4,G88,0) -> 0 | BE88: =IF(AZ88=5,G88,0) -> 0 | CA88: 1 | CB88: 1
C89: Výkopy - průměrná hl. výkopů 1,60 m: | E89: 0 | M89: Výkopy - průměrná hl. výkopů 1,60 m:
C90: Vodovodní přípojky PE D32x3,0 mm: | E90: 0 | M90: Vodovodní přípojky PE D32x3,0 mm:
C91: V hornině tř. 3 - 4:125,8985 | E91: 125.8985 | M91: V hornině tř. 3 - 4:125,8985
C92: Odpočet objemu zásypů zeminou:-77,8670 | E92: -77.867 | M92: Odpočet objemu zásypů zeminou:-77,8670
A93: 13 | B93: 174101101R00 | C93: Zásyp jam, rýh, šachet se zhutněním | D93: m3 | E93: 79.4798 | G93: =E93*F93 -> 0 | H93: 0 | I93: =E93*H93 -> 0 | J93: 0 | K93: =E93*J93 -> 0 | O93: 2 | AA93: 1 | AB93: 1 | AC93: 1 | AZ93: 1 | BA93: =IF(AZ93=1,G93,0) -> 0 | BB93: =IF(AZ93=2,G93,0) -> 0 | BC93: =IF(AZ93=3,G93,0) -> 0 | BD93: =IF(AZ93=4,G93,0) -> 0 | BE93: =IF(AZ93=5,G93,0) -> 0 | CA93: 1 | CB93: 1
C94: Položka obsahuje strojní přemístění materiálu pro zásyp ze vzdálenosti do 10 m od okraje zásypu. | L94: Položka obsahuje strojní přemístění materiálu pro zásyp ze vzdálenosti do 10 m od okraje zásypu. | O94: 3
O95: 3
C96: Zásyp ŠD fr. 0-63 mm:1,6128 | E96: 1.6128 | M96: Zásyp ŠD fr. 0-63 mm:1,6128
C97: Začátek provozního součtu | E97: 0 | M97: Začátek provozního součtu
C98: Výkopy - průměrná hl. výkopů 1,60 m: | E98: 0 | M98: Výkopy - průměrná hl. výkopů 1,60 m:
C99: Vodovodní přípojky PE D32x3,0 mm: | E99: 0 | M99: Vodovodní přípojky PE D32x3,0 mm:
C100: VP pro ppč. 3778:3,00*0,70*(1,60-0,35) | E100: 2.625 | M100: VP pro ppč. 3778:3,00*0,70*(1,60-0,35)
C101: Odpočet objemu lože, potrubí a obsypů:-3,00*0,70*(0,15+0,032+0,30) | E101: -1.0122 | M101: Odpočet objemu lože, potrubí a obsypů:-3,00*0,70*(0,15+0,032+0,30)
C102: Konec provozního součtu | E102: 1.6128 | M102: Konec provozního součtu
C103: Zásypy zeminou:77,8670 | E103: 77.867 | M103: Zásypy zeminou:77,8670
C104: Začátek provozního součtu | E104: 0 | M104: Začátek provozního součtu
C105: Výkopy - průměrná hl. výkopů 1,60 m: | E105: 0 | M105: Výkopy - průměrná hl. výkopů 1,60 m:
C106: Vodovodní přípojky PE D32x3,0 mm: | E106: 0 | M106: Vodovodní přípojky PE D32x3,0 mm:
C107: VP pro ppč. 3778:(8,80-3,00)*0,70*(1,60-0,20) | E107: 5.684 | M107: VP pro ppč. 3778:(8,80-3,00)*0,70*(1,60-0,20)
C108: VP pro čp. 8:(2,80+2,00)*0,70*(1,60-0,20) | E108: 4.704 | M108: VP pro čp. 8:(2,80+2,00)*0,70*(1,60-0,20)
C109: VP pro čp. 6:(4,60+59,90)*0,70*(1,60-0,20) | E109: 63.21 | M109: VP pro čp. 6:(4,60+59,90)*0,70*(1,60-0,20)
C110: VP pro čp. 2:(5,00+21,70)*0,70*(1,60-0,20) | E110: 26.166 | M110: VP pro čp. 2:(5,00+21,70)*0,70*(1,60-0,20)
C111: VP pro čp. 55:(15,90-6,00)*0,70*(1,60-0,20) | E111: 9.702 | M111: VP pro čp. 55:(15,90-6,00)*0,70*(1,60-0,20)
C112: Výkopy pro VŠ: | E112: 0 | M112: Výkopy pro VŠ:
C113: VP pro ppč. 3778:1,50*1,50*(1,95-0,20) | E113: 3.9375 | M113: VP pro ppč. 3778:1,50*1,50*(1,95-0,20)
C114: VP pro čp. 8:1,50*1,50*(1,95-0,20)-1,50*0,70*(1,60-0,20) | E114: 2.4675 | M114: VP pro čp. 8:1,50*1,50*(1,95-0,20)-1,50*0,70*(1,60-0,20)
C115: VP pro čp. 6:1,50*1,50*(1,95-0,20)-1,50*0,70*(1,60-0,20) | E115: 2.4675 | M115: VP pro čp. 6:1,50*1,50*(1,95-0,20)-1,50*0,70*(1,60-0,20)
C116: VP pro čp. 2:1,50*1,50*(1,95-0,20)-1,50*0,70*(1,60-0,20) | E116: 2.4675 | M116: VP pro čp. 2:1,50*1,50*(1,95-0,20)-1,50*0,70*(1,60-0,20)
C117: VP pro čp. 55:1,50*1,50*(1,95-0,20)-1,50*0,70*(1,60-0,20) | E117: 2.4675 | M117: VP pro čp. 55:1,50*1,50*(1,95-0,20)-1,50*0,70*(1,60-0,20)
C118: Odpočet objemu lože, potrubí a obsypů:-111,70*0,70*(0,15+0,032+0,30) | E118: -37.6876 | M118: Odpočet objemu lože, potrubí a obsypů:-111,70*0,70*(0,15+0,032+0,30)
C119: Odpočet objemu VŠ:-7,7189 | E119: -7.7189 | M119: Odpočet objemu VŠ:-7,7189
C120: 0 | E120: 0 | M120: 0
C121: Konec provozního součtu | E121: 77.867 | M121: Konec provozního součtu
A122: 14 | B122: 175101101R00 | C122: Obsyp potrubí bez prohození sypaniny | D122: m3 | E122: 26.564 | G122: =E122*F122 -> 0 | H122: 0 | I122: =E122*H122 -> 0 | J122: 0 | K122: =E122*J122 -> 0 | O122: 2 | AA122: 1 | AB122: 1 | AC122: 1 | AZ122: 1 | BA122: =IF(AZ122=1,G122,0) -> 0 | BB122: =IF(AZ122=2,G122,0) -> 0 | BC122: =IF(AZ122=3,G122,0) -> 0 | BD122: =IF(AZ122=4,G122,0) -> 0 | BE122: =IF(AZ122=5,G122,0) -> 0 | CA122: 1 | CB122: 1
C123: Vodovodní přípojky PE D32x3,0 mm: | E123: 0 | M123: Vodovodní přípojky PE D32x3,0 mm:
C124: VP pro ppč. 3778:8,80*(0,70*(0,032+0,30)-0,016^2*Pi) | E124: 2.038 | M124: VP pro ppč. 3778:8,80*(0,70*(0,032+0,30)-0,016^2*Pi)
C125: VP pro čp. 8:(2,80+2,00)*(0,70*(0,032+0,30)-0,016^2*Pi) | E125: 1.1117 | M125: VP pro čp. 8:(2,80+2,00)*(0,70*(0,032+0,30)-0,016^2*Pi)
C126: VP pro čp. 6:(4,60+59,90)*(0,70*(0,032+0,30)-0,016^2*Pi) | E126: 14.9379 | M126: VP pro čp. 6:(4,60+59,90)*(0,70*(0,032+0,30)-0,016^2*Pi)
C127: VP pro čp. 2:(5,00+21,70)*(0,70*(0,032+0,30)-0,016^2*Pi) | E127: 6.1836 | M127: VP pro čp. 2:(5,00+21,70)*(0,70*(0,032+0,30)-0,016^2*Pi)
C128: VP pro čp. 55:(15,90-6,00)*(0,70*(0,032+0,30)-0,016^2*Pi) | E128: 2.2928 | M128: VP pro čp. 55:(15,90-6,00)*(0,70*(0,032+0,30)-0,016^2*Pi)
A129: 15 | B129: 199000002R00 | C129: Poplatek za skládku horniny 1- 7 č. dle katal. odpadů 17 05 04 | D129: m3 | E129: 48.0315 | G129: =E129*F129 -> 0 | H129: 0 | I129: =E129*H129 -> 0 | J129: 0 | K129: =E129*J129 -> 0 | O129: 2 | AA129: 1 | AB129: 1 | AC129: 1 | AZ129: 1 | BA129: =IF(AZ129=1,G129,0) -> 0 | BB129: =IF(AZ129=2,G129,0) -> 0 | BC129: =IF(AZ129=3,G129,0) -> 0 | BD129: =IF(AZ129=4,G129,0) -> 0 | BE129: =IF(AZ129=5,G129,0) -> 0 | CA129: 1 | CB129: 1
C130: Výkopy - průměrná hl. výkopů 1,60 m: | E130: 0 | M130: Výkopy - průměrná hl. výkopů 1,60 m:
C131: Vodovodní přípojky PE D32x3,0 mm: | E131: 0 | M131: Vodovodní přípojky PE D32x3,0 mm:
C132: V hornině tř. 3 - 4:125,8985 | E132: 125.8985 | M132: V hornině tř. 3 - 4:125,8985
C133: Odpočet objemu zásypů zeminou:-77,8670 | E133: -77.867 | M133: Odpočet objemu zásypů zeminou:-77,8670
A134: 16 | B134: 919735113R00 | C134: Řezání stávajícího živičného krytu tl. 10 - 15 cm | D134: m | E134: 6 | G134: =E134*F134 -> 0 | H134: 0 | I134: =E134*H134 -> 0 | J134: 0 | K134: =E134*J134 -> 0 | O134: 2 | AA134: 1 | AB134: 1 | AC134: 1 | AZ134: 1 | BA134: =IF(AZ134=1,G134,0) -> 0 | BB134: =IF(AZ134=2,G134,0) -> 0 | BC134: =IF(AZ134=3,G134,0) -> 0 | BD134: =IF(AZ134=4,G134,0) -> 0 | BE134: =IF(AZ134=5,G134,0) -> 0 | CA134: 1 | CB134: 1
C135: Vodovodní přípojky PE D32x3,0 mm: | E135: 0 | M135: Vodovodní přípojky PE D32x3,0 mm:
C136: VP pro ppč. 3778:3,00*2 | E136: 6 | M136: VP pro ppč. 3778:3,00*2
A137: 17 | B137: 979082113RSZ | C137: Vodorovná doprava suti po suchu na skládku zhotovitele | D137: t | E137: 1.617 | G137: =E137*F137 -> 0 | H137: 0 | I137: =E137*H137 -> 0 | J137: 0 | K137: =E137*J137 -> 0 | O137: 2 | AA137: 1 | AB137: 1 | AC137: 1 | AZ137: 1 | BA137: =IF(AZ137=1,G137,0) -> 0 | BB137: =IF(AZ137=2,G137,0) -> 0 | BC137: =IF(AZ137=3,G137,0) -> 0 | BD137: =IF(AZ137=4,G137,0) -> 0 | BE137: =IF(AZ137=5,G137,0) -> 0 | CA137: 1 | CB137: 1
A138: 18 | B138: 979089001R00 | C138: Poplatek za skládku stavební suti štěrky z komunikací, skupina odpadu 010408 | D138: t | E138: 1.155 | G138: =E138*F138 -> 0 | H138: 0 | I138: =E138*H138 -> 0 | J138: 0 | K138: =E138*J138 -> 0 | O138: 2 | AA138: 1 | AB138: 1 | AC138: 1 | AZ138: 1 | BA138: =IF(AZ138=1,G138,0) -> 0 | BB138: =IF(AZ138=2,G138,0) -> 0 | BC138: =IF(AZ138=3,G138,0) -> 0 | BD138: =IF(AZ138=4,G138,0) -> 0 | BE138: =IF(AZ138=5,G138,0) -> 0 | CA138: 1 | CB138: 1
A139: 19 | B139: 979999995R00 | C139: Poplatek za reciklaci asfaltu, kusovost do 1600cm2 skupina 170302 | D139: t | E139: 0.462 | G139: =E139*F139 -> 0 | H139: 0 | I139: =E139*H139 -> 0 | J139: 0 | K139: =E139*J139 -> 0 | O139: 2 | AA139: 1 | AB139: 1 | AC139: 1 | AZ139: 1 | BA139: =IF(AZ139=1,G139,0) -> 0 | BB139: =IF(AZ139=2,G139,0) -> 0 | BC139: =IF(AZ139=3,G139,0) -> 0 | BD139: =IF(AZ139=4,G139,0) -> 0 | BE139: =IF(AZ139=5,G139,0) -> 0 | CA139: 1 | CB139: 1
C140: Položka je určena pro suť o velikosti kusu do 30x30 cm (technologický materiál určený k recyklaci). | L140: Položka je určena pro suť o velikosti kusu do 30x30 cm (technologický materiál určený k recyklaci). | O140: 3
A141: 20 | B141: 286134105.R | C141: Trubka tlaková AQUALINE RC1 PE100 63x5,8 mm PN16 návin L=100 m | D141: m | E141: 6.6 | G141: =E141*F141 -> 0 | H141: 0.00147 | I141: =E141*H141 -> 0.009702 | K141: =E141*J141 -> 0 | O141: 2 | AA141: 3 | AB141: 1 | AC141: 286134105.R | AZ141: 1 | BA141: =IF(AZ141=1,G141,0) -> 0 | BB141: =IF(AZ141=2,G141,0) -> 0 | BC141: =IF(AZ141=3,G141,0) -> 0 | BD141: =IF(AZ141=4,G141,0) -> 0 | BE141: =IF(AZ141=5,G141,0) -> 0 | CA141: 3 | CB141: 1
C142: Vodovodní přípojky PE D32x3,0 mm: | E142: 0 | M142: Vodovodní přípojky PE D32x3,0 mm:
C143: VP pro čp. 55: | E143: 0 | M143: VP pro čp. 55:
C144: Řízený protlak pod komunikací KSS LK pro chráničku PE D63:6,00*1,1 | E144: 6.6 | M144: Řízený protlak pod komunikací KSS LK pro chráničku PE D63:6,00*1,1
A145: 21 | B145: 58337308.R | C145: Štěrkopísek frakce 0-2 tř.B | D145: t | E145: 52.9349 | G145: =E145*F145 -> 0 | H145: 1 | I145: =E145*H145 -> 52.9349 | K145: =E145*J145 -> 0 | O145: 2 | AA145: 3 | AB145: 1 | AC145: 58337308.R | AZ145: 1 | BA145: =IF(AZ145=1,G145,0) -> 0 | BB145: =IF(AZ145=2,G145,0) -> 0 | BC145: =IF(AZ145=3,G145,0) -> 0 | BD145: =IF(AZ145=4,G145,0) -> 0 | BE145: =IF(AZ145=5,G145,0) -> 0 | CA145: 3 | CB145: 1
C146: Vodovodní přípojky PE D32x3,0 mm: | E146: 0 | M146: Vodovodní přípojky PE D32x3,0 mm:
C147: VP pro ppč. 3778:8,80*(0,70*(0,032+0,30)-0,016^2*Pi)*1,973*1,01 | E147: 4.0613 | M147: VP pro ppč. 3778:8,80*(0,70*(0,032+0,30)-0,016^2*Pi)*1,973*1,01
C148: VP pro čp. 8:(2,80+2,00)*(0,70*(0,032+0,30)-0,016^2*Pi)*1,973*1,01 | E148: 2.2152 | M148: VP pro čp. 8:(2,80+2,00)*(0,70*(0,032+0,30)-0,016^2*Pi)*1,973*1,01
C149: VP pro čp. 6:(4,60+59,90)*(0,70*(0,032+0,30)-0,016^2*Pi)*1,973*1,01 | E149: 29.7673 | M149: VP pro čp. 6:(4,60+59,90)*(0,70*(0,032+0,30)-0,016^2*Pi)*1,973*1,01
C150: VP pro čp. 2:(5,00+21,70)*(0,70*(0,032+0,30)-0,016^2*Pi)*1,973*1,01 | E150: 12.3223 | M150: VP pro čp. 2:(5,00+21,70)*(0,70*(0,032+0,30)-0,016^2*Pi)*1,973*1,01
C151: VP pro čp. 55:(15,90-6,00)*(0,70*(0,032+0,30)-0,016^2*Pi)*1,973*1,01 | E151: 4.5689 | M151: VP pro čp. 55:(15,90-6,00)*(0,70*(0,032+0,30)-0,016^2*Pi)*1,973*1,01
A152: 22 | B152: 58344197R | C152: Štěrkodrtě frakce 0-63 A | D152: t | E152: 3.051 | G152: =E152*F152 -> 0 | H152: 1 | I152: =E152*H152 -> 3.051 | K152: =E152*J152 -> 0 | O152: 2 | AA152: 3 | AB152: 1 | AC152: 58344197R | AZ152: 1 | BA152: =IF(AZ152=1,G152,0) -> 0 | BB152: =IF(AZ152=2,G152,0) -> 0 | BC152: =IF(AZ152=3,G152,0) -> 0 | BD152: =IF(AZ152=4,G152,0) -> 0 | BE152: =IF(AZ152=5,G152,0) -> 0 | CA152: 3 | CB152: 1
C153: Zásyp ŠD fr. 0-63 mm:1,6128*1,873*1,01 | E153: 3.051 | M153: Zásyp ŠD fr. 0-63 mm:1,6128*1,873*1,01
C154: Začátek provozního součtu | E154: 0 | M154: Začátek provozního součtu
C155: Výkopy - průměrná hl. výkopů 1,60 m: | E155: 0 | M155: Výkopy - průměrná hl. výkopů 1,60 m:
C156: Vodovodní přípojky PE D32x3,0 mm: | E156: 0 | M156: Vodovodní přípojky PE D32x3,0 mm:
C157: VP pro ppč. 3778:3,00*0,70*(1,60-0,35) | E157: 2.625 | M157: VP pro ppč. 3778:3,00*0,70*(1,60-0,35)
C158: Odpočet objemu lože, potrubí a obsypů:-3,00*0,70*(0,15+0,032+0,30) | E158: -1.0122 | M158: Odpočet objemu lože, potrubí a obsypů:-3,00*0,70*(0,15+0,032+0,30)
C159: Konec provozního součtu | E159: 1.6128 | M159: Konec provozního součtu
B160: Celkem za | C160: 1 Zemní práce | G160: =SUM(G7:G159) -> 0 | I160: =SUM(I7:I159) -> 56.0454395 | K160: =SUM(K7:K159) -> -1.617 | O160: 4 | BA160: =SUM(BA7:BA159) -> 0 | BB160: =SUM(BB7:BB159) -> 0 | BC160: =SUM(BC7:BC159) -> 0 | BD160: =SUM(BD7:BD159) -> 0 | BE160: =SUM(BE7:BE159) -> 0
A161: Díl: | B161: 45 | C161: Podkladní a vedlejší konstrukce | O161: 1
A162: 23 | B162: 451572111R00 | C162: Lože pod potrubí z kameniva těženého 0 - 4 mm | D162: m3 | E162: 12.0435 | G162: =E162*F162 -> 0 | H162: 0.43051 | I162: =E162*H162 -> 5.184847185 | J162: 0 | K162: =E162*J162 -> 0 | O162: 2 | AA162: 1 | AB162: 1 | AC162: 1 | AZ162: 1 | BA162: =IF(AZ162=1,G162,0) -> 0 | BB162: =IF(AZ162=2,G162,0) -> 0 | BC162: =IF(AZ162=3,G162,0) -> 0 | BD162: =IF(AZ162=4,G162,0) -> 0 | BE162: =IF(AZ162=5,G162,0) -> 0 | CA162: 1 | CB162: 1
C163: Vodovodní přípojky PE D32x3,0 mm: | E163: 0 | M163: Vodovodní přípojky PE D32x3,0 mm:
C164: VP pro ppč. 3778:8,80*0,70*0,15 | E164: 0.924 | M164: VP pro ppč. 3778:8,80*0,70*0,15
C165: VP pro čp. 8:(2,80+2,00)*0,70*0,15 | E165: 0.504 | M165: VP pro čp. 8:(2,80+2,00)*0,70*0,15
C166: VP pro čp. 6:(4,60+59,90)*0,70*0,15 | E166: 6.7725 | M166: VP pro čp. 6:(4,60+59,90)*0,70*0,15
C167: VP pro čp. 2:(5,00+21,70)*0,70*0,15 | E167: 2.8035 | M167: VP pro čp. 2:(5,00+21,70)*0,70*0,15
C168: VP pro čp. 55:(15,90-6,00)*0,70*0,15 | E168: 1.0395 | M168: VP pro čp. 55:(15,90-6,00)*0,70*0,15
B169: Celkem za | C169: 45 Podkladní a vedlejší konstrukce | G169: =SUM(G161:G168) -> 0 | I169: =SUM(I161:I168) -> 5.184847185 | K169: =SUM(K161:K168) -> 0 | O169: 4 | BA169: =SUM(BA161:BA168) -> 0 | BB169: =SUM(BB161:BB168) -> 0 | BC169: =SUM(BC161:BC168) -> 0 | BD169: =SUM(BD161:BD168) -> 0 | BE169: =SUM(BE161:BE168) -> 0
A170: Díl: | B170: 5 | C170: Komunikace | O170: 1
A171: 24 | B171: 566903111R00 | C171: Vyspravení podkladu po překopech kam.hrubě drceným | D171: t | E171: 0.9833 | G171: =E171*F171 -> 0 | H171: 1.1 | I171: =E171*H171 -> 1.08163 | J171: 0 | K171: =E171*J171 -> 0 | O171: 2 | AA171: 1 | AB171: 1 | AC171: 1 | AZ171: 1 | BA171: =IF(AZ171=1,G171,0) -> 0 | BB171: =IF(AZ171=2,G171,0) -> 0 | BC171: =IF(AZ171=3,G171,0) -> 0 | BD171: =IF(AZ171=4,G171,0) -> 0 | BE171: =IF(AZ171=5,G171,0) -> 0 | CA171: 1 | CB171: 1
C172: Vodovodní přípojky PE D32x3,0 mm: | E172: 0 | M172: Vodovodní přípojky PE D32x3,0 mm:
C173: VP pro ppč. 3778:3,00*0,70*0,25*1,873 | E173: 0.9833 | M173: VP pro ppč. 3778:3,00*0,70*0,25*1,873
A174: 25 | B174: 566904111R00 | C174: Vyspravení podkladu po překopech kam.obal.asfaltem | D174: t | E174: 0.525 | G174: =E174*F174 -> 0 | H174: 1 | I174: =E174*H174 -> 0.525 | J174: 0 | K174: =E174*J174 -> 0 | O174: 2 | AA174: 1 | AB174: 1 | AC174: 1 | AZ174: 1 | BA174: =IF(AZ174=1,G174,0) -> 0 | BB174: =IF(AZ174=2,G174,0) -> 0 | BC174: =IF(AZ174=3,G174,0) -> 0 | BD174: =IF(AZ174=4,G174,0) -> 0 | BE174: =IF(AZ174=5,G174,0) -> 0 | CA174: 1 | CB174: 1
C175: Vodovodní přípojky PE D32x3,0 mm: | E175: 0 | M175: Vodovodní přípojky PE D32x3,0 mm:
C176: VP pro ppč. 3778:3,00*0,70*0,10*2,5 | E176: 0.525 | M176: VP pro ppč. 3778:3,00*0,70*0,10*2,5
B177: Celkem za | C177: 5 Komunikace | G177: =SUM(G170:G176) -> 0 | I177: =SUM(I170:I176) -> 1.60663 | K177: =SUM(K170:K176) -> 0 | O177: 4 | BA177: =SUM(BA170:BA176) -> 0 | BB177: =SUM(BB170:BB176) -> 0 | BC177: =SUM(BC170:BC176) -> 0 | BD177: =SUM(BD170:BD176) -> 0 | BE177: =SUM(BE170:BE176) -> 0
A178: Díl: | B178: 8 | C178: Trubní vedení | O178: 1
A179: 26 | B179: 871161121R00 | C179: Montáž trubek polyetylenových ve výkopu d 32 mm | D179: m | E179: 120.7 | G179: =E179*F179 -> 0 | H179: 0 | I179: =E179*H179 -> 0 | J179: 0 | K179: =E179*J179 -> 0 | O179: 2 | AA179: 1 | AB179: 1 | AC179: 1 | AZ179: 1 | BA179: =IF(AZ179=1,G179,0) -> 0 | BB179: =IF(AZ179=2,G179,0) -> 0 | BC179: =IF(AZ179=3,G179,0) -> 0 | BD179: =IF(AZ179=4,G179,0) -> 0 | BE179: =IF(AZ179=5,G179,0) -> 0 | CA179: 1 | CB179: 1
C180: V položce je uvažováno použití svitku. | L180: V položce je uvažováno použití svitku. | O180: 3
C181: Vodovodní přípojky PE D32x3,0 mm: | E181: 0 | M181: Vodovodní přípojky PE D32x3,0 mm:
C182: VP pro ppč. 3778:8,80 | E182: 8.8 | M182: VP pro ppč. 3778:8,80
C183: VP pro čp. 8:2,80+2,00 | E183: 4.8 | M183: VP pro čp. 8:2,80+2,00
C184: VP pro čp. 6:4,60+59,90 | E184: 64.5 | M184: VP pro čp. 6:4,60+59,90
C185: VP pro čp. 2:5,00+21,70 | E185: 26.7 | M185: VP pro čp. 2:5,00+21,70
C186: VP pro čp. 55:15,90 | E186: 15.9 | M186: VP pro čp. 55:15,90
A187: 27 | B187: 877162121R00 | C187: Přirážka za 1 spoj elektrotvarovky d 32 mm | D187: kus | E187: 5 | G187: =E187*F187 -> 0 | H187: 0 | I187: =E187*H187 -> 0 | J187: 0 | K187: =E187*J187 -> 0 | O187: 2 | AA187: 1 | AB187: 1 | AC187: 1 | AZ187: 1 | BA187: =IF(AZ187=1,G187,0) -> 0 | BB187: =IF(AZ187=2,G187,0) -> 0 | BC187: =IF(AZ187=3,G187,0) -> 0 | BD187: =IF(AZ187=4,G187,0) -> 0 | BE187: =IF(AZ187=5,G187,0) -> 0 | CA187: 1 | CB187: 1
C188: Vodovodní přípojky PE D32x3,0 mm: | E188: 0 | M188: Vodovodní přípojky PE D32x3,0 mm:
C189: Elektrospojka PE D32:5 | E189: 5 | M189: Elektrospojka PE D32:5
A190: 28 | B190: 891183439RX0 | C190: Přepojení potrubí PE na přípojkách D 32 včetně dodávky přepojovací tvarovky | D190: kus | E190: 4 | G190: =E190*F190 -> 0 | H190: 0.00046 | I190: =E190*H190 -> 0.00184 | J190: 0 | K190: =E190*J190 -> 0 | O190: 2 | AA190: 1 | AB190: 1 | AC190: 1 | AZ190: 1 | BA190: =IF(AZ190=1,G190,0) -> 0 | BB190: =IF(AZ190=2,G190,0) -> 0 | BC190: =IF(AZ190=3,G190,0) -> 0 | BD190: =IF(AZ190=4,G190,0) -> 0 | BE190: =IF(AZ190=5,G190,0) -> 0 | CA190: 1 | CB190: 1
C191: Položka obsahuje přerušení stávajícího potrubí, montáž a dodávku příslušné tvarovky pro propojení stávajícího potrubí (PE, ocel a pod.) s novým potrubím (PE D 32x3,0 mm) přípojky D 32 | L191: Položka obsahuje přerušení stávajícího potrubí, montáž a dodávku příslušné tvarovky pro propojení stávajícího potrubí (PE, ocel a pod.) s novým potrubím (PE D 32x3,0 mm) přípojky D 32 | O191: 3
C192: Vodovodní přípojky PE D32x3,0 mm: | E192: 0 | M192: Vodovodní přípojky PE D32x3,0 mm:
C193: VP pro čp. 8:1 | E193: 1 | M193: VP pro čp. 8:1
C194: VP pro čp. 6:1 | E194: 1 | M194: VP pro čp. 6:1
C195: VP pro čp. 2:1 | E195: 1 | M195: VP pro čp. 2:1
C196: VP pro čp. 55:1 | E196: 1 | M196: VP pro čp. 55:1
A197: 29 | B197: 892233111R00 | C197: Desinfekce vodovodního potrubí DN 70 | D197: m | E197: 120.7 | G197: =E197*F197 -> 0 | H197: 0 | I197: =E197*H197 -> 0 | J197: 0 | K197: =E197*J197 -> 0 | O197: 2 | AA197: 1 | AB197: 1 | AC197: 1 | AZ197: 1 | BA197: =IF(AZ197=1,G197,0) -> 0 | BB197: =IF(AZ197=2,G197,0) -> 0 | BC197: =IF(AZ197=3,G197,0) -> 0 | BD197: =IF(AZ197=4,G197,0) -> 0 | BE197: =IF(AZ197=5,G197,0) -> 0 | CA197: 1 | CB197: 1
C198: V položce jsou zakalkulovány náklady na napuštění a vypuštění vody, dodání vody a desinfekčního prostředku a na bakteriologický rozbor vody. | L198: V položce jsou zakalkulovány náklady na napuštění a vypuštění vody, dodání vody a desinfekčního prostředku a na bakteriologický rozbor vody. | O198: 3
C199: Vodovodní přípojky PE D32x3,0 mm: | E199: 0 | M199: Vodovodní přípojky PE D32x3,0 mm:
C200: VP pro ppč. 3778:8,80 | E200: 8.8 | M200: VP pro ppč. 3778:8,80
C201: VP pro čp. 8:2,80+2,00 | E201: 4.8 | M201: VP pro čp. 8:2,80+2,00
C202: VP pro čp. 6:4,60+59,90 | E202: 64.5 | M202: VP pro čp. 6:4,60+59,90
... 76 more rows

Sheet OaVNS
A1: Položkový rozpočet
A3: Stavba : | C3: 3410 Prodloužení vodovodního řadu, Vyskeř - Drahoňovice | E3: Rozpočet: | F3: OaVNS
A4: Objekt : | C4: OaVNS - Ostatní a vedlejší náklady stavby
A6: P.č. | B6: Číslo položky | C6: Název položky | D6: MJ | E6: množství | F6: cena / MJ | G6: celkem (Kč) | H6: Jednotková hmotnost | I6: Celková hmotnost | J6: Jednotková dem.hmot. | K6: Celková dem.hmot.
A7: Díl: | B7: 950 | C7: Ostatní náklady stavby
A8: 1 | B8: 950 99-0001.ONS | C8: Zajištění prostoru a vybudování zařízení staveniště včetně potřebných staveništních komunikací | D8: soubor | E8: 1 | G8: =SUM(E8*F8) -> 0 | H8: 0.00869 | I8: =E8*H8 -> 0.00869 | J8: 0 | K8: =E8*J8 -> 0 | BN8: 1 | BO8: 1
A9: 2 | B9: 950 99-0003.ONS | C9: Zajištění bezpečnosti při provádění stavby ve smyslu bezpečnosti práce i ochrany životního prostředí a zeleně | D9: soubor | E9: 1 | G9: =SUM(E9*F9) -> 0
A10: 3 | B10: 950 99-0005.ONS | C10: Vytýčení stavby a hranic pozemků při provádění stavby | D10: soubor | E10: 1 | G10: 0
A11: 4 | B11: 950 99-0006.ONS | C11: Zajištění včasného oznámení o zahájení prací majitelům pozemků a správců sítí dotčených stavbou | D11: soubor | E11: 1 | G11: 0
A12: 5 | B12: 950 99-0007.ONS | C12: Spolupráce s vlastníky pozemků při případném uvolnění pozemků pro stavbu (např. skládky osobního materiálu vlastníků) | D12: soubor | E12: 1 | G12: 0 | H12: 0.02478 | I12: =E12*H12 -> 0.02478 | J12: 0 | K12: =E12*J12 -> 0 | BN12: 1 | BO12: 1
A13: 6 | B13: 950 99-0008.ONS | C13: Zajištění vytýčení podzemních zařízení, a v případě jejich křížení či souběhu v otevřeném výkopu, jejich písemné předání zpět jejich správcům před zásypem | D13: soubor | E13: 1 | G13: 0
A14: 7 | B14: 950 99-0009.ONS | C14: Vypracování a projednání návrhu dočasných dopravních opatření (případně i po etapách dle zvoleného postupu prací zhotovitelem) | D14: soubor | E14: 1 | G14: 0
A15: 8 | B15: 950 99-0010.ONS | C15: Zajištění povolení zvláštního užívání komunikací v souladu s postupem výstavby,včetně správních poplatků a povolení k užívání dalších, stavbou dotčených pozemků (skládky materiálu, mezideponie atd.) | D15: soubor | E15: 1 | G15: 0
A16: 9 | B16: 950 99-0011.ONS | C16: Zřízení, údržba a likvidace dopravního opatření po dobu realizace stavby (případně i po etapách dle zvoleného postupu prací zhotovitelem) | D16: soubor | E16: 1 | G16: 0 | H16: 0 | I16: =E16*H16 -> 0 | J16: 0 | K16: =E16*J16 -> 0 | BN16: 1 | BO16: 1
A17: 10 | B17: 950 99-0013.ONS | C17: Zajištění činnosti odpovědného geodeta zhotovitele | D17: soubor | E17: 1 | G17: 0
A18: 11 | B18: 950 99-0015.ONS | C18: Zajištění čistoty na staveništi a v jeho okolí, zajištění každodenního čištění komunikací dotčených provozem zhotovitele | D18: soubor | E18: 1 | G18: 0
A19: 12 | B19: 950 99-0016.ONS | C19: Fotodokumentace průběhu díla; zhotovitel zajistí a předá objednateli průběžnou fotodokumentaci realizace díla. Fotodokumentace bude dokladovat průběh díla a bude zejména dokumentovat části stavby a konstrukce před jejich zakrytím | D19: soubor | E19: 1 | G19: 0
A20: 13 | B20: 950 99-0018.ONS | C20: Zkoušky hutnění komunikací a rýh dle ČSN a EN | D20: soubor | E20: 1 | G20: 0
A21: 14 | B21: 950 99-0021.ONS | C21: Inženýrská a kompletační činnost zhotovitele | D21: soubor | E21: 1 | G21: 0
A22: 15 | B22: 950 99-0022.ONS | C22: Zhotovení dokumentace skutečného provedení díla | D22: soubor | E22: 1 | G22: 0
A23: 16 | B23: 950 99-0023.ONS | C23: Geodetické zaměření stavby | D23: soubor | E23: 1 | G23: 0
A24: 17 | B24: 950 99-0024.ONS | C24: Pasportizace objektů a komunikací před zahájením stavby včetně předání fotokokumentace investorovi stavby v digitální a tištěné podobě. | D24: soubor | E24: 1 | G24: 0
A25: 18 | B25: 950 99-0025.ONS | C25: Provizorní zásobování vodou (cisterny) | D25: soubor | E25: 1 | G25: 0
A26: 19 | B26: 950 99-0027.ONS | C26: Ostatní činnosti nutné ke zdárnému provedení díla, které jsou vymezeny zejména v technické specifikaci stavby | D26: soubor | E26: 1 | G26: 0
B28: ONS Celkem | G28: =SUM(G8:G26) -> 0
